Workbook

Sheet _Оглавление_ (для ТС) (hidden)
B1: Перечень приложений к тарифному соглашению системы обязательного медицинского страхования Томской области на 2023 год
A2: Приложение № 1 (Word) | B2: Приложение № 1 | C2: Положение о порядке оплаты медицинской помощи в сфере обязательного медицинского страхования на территории Томской области на 2023 год
A3: Приложение № 2 (Word) | B3: Приложение № 2 | C3: Порядок осуществления выплат медицинским организациям, имеющим прикрепившихся лиц, в случае достижения целевых значений показателей результативности деятельности
A4: Приложение № 3 | B4: =#REF! ->  | C4: =#REF! -> 
A5: Приложение № 4 | B5: =#REF! ->  | C5: =#REF! -> 
A6: Приложение № 5 | B6: =#REF! ->  | C6: =#REF! -> 
A7: Приложение № 6 | B7: =#REF! ->  | C7: =#REF! -> 
C8: =#REF! -> 
C9: =#REF! -> 
A10: Приложение № 7 | B10: =#REF! ->  | C10: =#REF! -> 
C11: =#REF! -> 
C12: =#REF! -> 
C13: =#REF! -> 
C14: =#REF! -> 
C15: =#REF! -> 
A16: Приложение № 8 | B16: =#REF! ->  | C16: =#REF! -> 
C17: =#REF! -> 
C18: =#REF! -> 
A19: Приложение № 9 | B19: =#REF! ->  | C19: =#REF! -> 
A20: Приложение № 10 | B20: =#REF! ->  | C20: =#REF! -> 
A21: Приложение № 11 | B21: =#REF! ->  | C21: =#REF! -> 
C22: =#REF! -> 
C23: =#REF! -> 
C24: =#REF! -> 
C25: =#REF! -> 
C26: =#REF! -> 
C27: =#REF! -> 
C28: =#REF! -> 
A29: Приложение № 12 | B29: =#REF! ->  | C29: =#REF! -> 
A30: Приложение № 13 | B30: =#REF! ->  | C30: =#REF! -> 
A31: Приложение № 14 | B31: =#REF! ->  | C31: =#REF! -> 
A32: Приложение № 15 | B32: =#REF! ->  | C32: =#REF! -> 
A33: Приложение № 16 | B33: =#REF! ->  | C33: =#REF! -> 
C34: =#REF! -> 
C35: =#REF! -> 
A36: Приложение № 17 | B36: =#REF! ->  | C36: =#REF! -> 
A37: Приложение № 18 | B37: =#REF! ->  | C37: =#REF! -> 
C38: =#REF! -> 
C39: =#REF! -> 
C40: =#REF! -> 
A41: Приложение № 19 | B41: =#REF! ->  | C41: =#REF! -> 
A42: Приложение № 20 | B42: =#REF! ->  | C42: =#REF! -> 
A43: Приложение № 21 | B43: =#REF! ->  | C43: =#REF! -> 
A44: Приложение № 22 | B44: =#REF! ->  | C44: =#REF! -> 
A45: Приложение № 23 | B45: =#REF! ->  | C45: =#REF! -> 
A46: Приложение № 24 | B46: =#REF! ->  | C46: =#REF! -> 
A47: Приложение № 25 | B47: =#REF! ->  | C47: =#REF! -> 
A48: Приложение № 26 | B48: =#REF! ->  | C48: =#REF! -> 
A49: Приложение № 27 | B49: =#REF! ->  | C49: =#REF! -> 
A50: Приложение № 28 | B50: =#REF! ->  | C50: =#REF! -> 
A51: Приложение № 29 | B51: ='Приложение №3'!$B$10 -> Приложение № 31 | C51: ='Приложение №3'!$B$16 -> Коэффициенты сложности лечения пациента для оплаты медицинской помощи, оказанной в стационарных условиях и в условиях дневного стационара, по КСГ, в том числе лицам, застрахованным за пределами Томской области
A52: Приложение № 30 | B52: =#REF! ->  | C52: =#REF! -> 
A53: Приложение № 31 | B53: =#REF! ->  | C53: =#REF! -> 
A54: Приложение № 32 | B54: =#REF! ->  | C54: =#REF! -> 
A55: Приложение № 33 | B55: =#REF! ->  | C55: =#REF! -> 
A56: Приложение № 34 | B56: =#REF! ->  | C56: =#REF! -> 
A57: Приложение № 35 | B57: =#REF! ->  | C57: =#REF! -> 
A58: Приложение № 36 | B58: =#REF! ->  | C58: =#REF! -> 
A59: Приложение № 37 | B59: =#REF! ->  | C59: =#REF! -> 
A60: Приложение № 38 | B60: =#REF! ->  | C60: =#REF! -> 
A61: Приложение № 39 (Word) | B61: Приложение № 40 | C61: Перечень оснований для отказа в оплате медицинской помощи (уменьшения оплаты медицинской помощи), размеров и условий применения финансовых санкций по результатам контроля объемов, сроков, качества и условий предоставления медицинской помощи по обязательному медицинскому страхованию на территории томской области

Sheet _Оглавление_
B1: Перечень приложений к тарифному соглашению системы обязательного медицинского страхования Томской области на 2024 год
A2: Доп.соглашение № 5 | B2: Тарифное соглашение
A3: от 31.05.2024 | B3: от 05.02.2024
A4: Приложение № 2 | B4: Приложение № 5 | C4: ='Приложение № 2'!B16 -> Тарифы на оплату медицинской помощи в амбулаторных условиях, по подушевому нормативу финансирования, оказываемой медицинскими организациями, участвующими в реализации территориальной программы обязательного медицинского страхования Томской области, с учетом показателей результативности деятельности медицинской организации (включая показатели объема медицинской помощи)
A5: Приложение №3 | B5: Приложение № 31 | C5: ='Приложение №3'!B16 -> Коэффициенты сложности лечения пациента для оплаты медицинской помощи, оказанной в стационарных условиях и в условиях дневного стационара, по КСГ, в том числе лицам, застрахованным за пределами Томской области
A6: Приложение № 4 | B6: Приложение № 40 | C6: ='Приложение № 4'!B16 -> Тарифы на оплату медицинской помощи по подушевому нормативу финансирования на прикрепившихся к медицинской организации лиц, включая оплату по всем видам и условиям предоставляемой медицинской помощи, с учетом показателей результативности деятельности медицинской организации (включая показатели объема медицинской помощи)
A7: Приложение № 5 | B7: Приложение № 41 | C7: ='Приложение № 5'!B16 -> Тарифы на оплату первого и второго этапа диспансеризации ветеранов боевых действий - участников специальной военной операции, с 01.05.2024

Sheet Приложение № 2
B2: =MID(CELL("filename",A2),SEARCH("]",CELL("filename",A2))+1,31) -> Приложение № 2
B3: к Дополнительному соглашению № 5
B4: от 31.05.2024
B5: к Тарифному соглашению
B6: на оплату медицинской помощи
B7: по ОМС на территории Томской области на 2024 год
B8: от 05.02.2024
B10: Приложение № 5
B11: к Тарифному соглашению
B12: на оплату медицинской помощи
B13: по ОМС на территории Томской области на 2024 год
B14: от 05.02.2024
B16: Тарифы на оплату медицинской помощи в амбулаторных условиях, по подушевому нормативу финансирования, оказываемой медицинскими организациями, участвующими в реализации территориальной программы обязательного медицинского страхования Томской области, с учетом показателей результативности деятельности медицинской организации (включая показатели объема медицинской помощи)
B18: Тарифы на оплату медицинской помощи в амбулаторных условиях, по подушевому нормативу финансирования, оказываемой медицинскими организациями, участвующими в реализации территориальной программы обязательного медицинского страхования Томской области, с учетом показателей результативности деятельности медицинской организации (включая показатели объема медицинской помощи), с 01.06.2024
B20: Код МО | C20: Наименование МО | D20: Среднемесячное количество застрахованных лиц, прикрепленных к медицинской организации, на 01.05.2024 | E20: Базовый подушевой норматив на одно застрахованное прикрепившееся лицо (руб. в месяц) | F20: Коэффициент половозрастного состава | G20: Коэффициент уровня расходов медицинских организаций | H20: Коэффициент достижения целевых показателей уровня заработной платы медиицнских работников, предусмотренного "Дорожными картами" развития здравоохранения в ТО | I20: Коэффициент дифференциации на прикрепившихся к медицинской организации лиц с учетом наличия подразделений, расположенных в сельской местности, отдаленных территориях, поселках городского типа и малых городах с численностью населения до 50 тысяч человек и расходов на их содержание и на оплату труда персонала | J20: Диапазон численности прикрепленного населения к медицинским организациям, расположенных в сельской местности, отдаленных территориях, поселках городского типа и малых городах с численностью населения до 50 тысяч человек | K20: Коэффициент дифференциации по территориям оказания медицинской организации | L20: Месячный дифференцированный подушевой норматив финансирования МО на одно застрахованное прикрепившееся лицо, руб. в месяц | M20: Месячный дифференцированный подушевой норматив финансирования поликлиники на одно застрахованное прикрепившееся лицо на выплаты за достижение целевых значений показателей результативности деятельности, руб. в месяц
B21: 59 | C21: ОГБУЗ "Асиновская РБ" | D21: =VLOOKUP($B21,'[9]Неполный_уменьш. база (2)'!$A$5:$X$43,3,0) -> 31706 | E21: 189.57 | F21: =VLOOKUP($B21,'[9]Неполный_уменьш. база (2)'!$A$5:$X$43,21,0) -> 1.086891068 | G21: 1 | H21: =VLOOKUP($B21,'[9]Неполный_уменьш. база (2)'!$A$5:$X$43,22,0) -> 1.12806 | I21: =VLOOKUP($B21,'[9]Неполный_уменьш. база (2)'!$A$5:$X$43,8,0) -> 1.04 | J21: свыше 20,0 тыс. человек | K21: =VLOOKUP($B21,'[9]Неполный_уменьш. база (2)'!$A$5:$X$43,9,0) -> 1.27 | L21: =ROUND(E21*F21*G21*H21*I21*K21,2) -> 306.99 | M21: =ROUND(L21*1/99,2) -> 3.1
B22: 67 | C22: ОГБУЗ "Зырянская РБ" | D22: =VLOOKUP($B22,'[9]Неполный_уменьш. база (2)'!$A$5:$X$43,3,0) -> 11209 | E22: 189.57 | F22: =VLOOKUP($B22,'[9]Неполный_уменьш. база (2)'!$A$5:$X$43,21,0) -> 1.081034647 | G22: 1 | H22: =VLOOKUP($B22,'[9]Неполный_уменьш. база (2)'!$A$5:$X$43,22,0) -> 1.22147 | I22: =VLOOKUP($B22,'[9]Неполный_уменьш. база (2)'!$A$5:$X$43,8,0) -> 1.113 | J22: до 20,0 тыс. человек | K22: =VLOOKUP($B22,'[9]Неполный_уменьш. база (2)'!$A$5:$X$43,9,0) -> 1.26 | L22: =ROUND(E22*F22*G22*H22*I22*K22,2) -> 351.04 | M22: =ROUND(L22*1/99,2) -> 3.55
B23: 71 | C23: ОГАУЗ "Кожевниковская РБ" | D23: =VLOOKUP($B23,'[9]Неполный_уменьш. база (2)'!$A$5:$X$43,3,0) -> 16734 | E23: 189.57 | F23: =VLOOKUP($B23,'[9]Неполный_уменьш. база (2)'!$A$5:$X$43,21,0) -> 1.107302328 | G23: 1 | H23: =VLOOKUP($B23,'[9]Неполный_уменьш. база (2)'!$A$5:$X$43,22,0) -> 1 | I23: =VLOOKUP($B23,'[9]Неполный_уменьш. база (2)'!$A$5:$X$43,8,0) -> 1.113 | J23: до 20,0 тыс. человек | K23: =VLOOKUP($B23,'[9]Неполный_уменьш. база (2)'!$A$5:$X$43,9,0) -> 1.272 | L23: 297.18 | M23: 3
B24: 103 | C24: ОГАУЗ "Колпашевская РБ" | D24: =VLOOKUP($B24,'[9]Неполный_уменьш. база (2)'!$A$5:$X$43,3,0) -> 34895 | E24: 189.57 | F24: =VLOOKUP($B24,'[9]Неполный_уменьш. база (2)'!$A$5:$X$43,21,0) -> 1.101405605 | G24: 1 | H24: =VLOOKUP($B24,'[9]Неполный_уменьш. база (2)'!$A$5:$X$43,22,0) -> 1.24875 | I24: =VLOOKUP($B24,'[9]Неполный_уменьш. база (2)'!$A$5:$X$43,8,0) -> 1.04 | J24: свыше 20,0 тыс. человек | K24: =VLOOKUP($B24,'[9]Неполный_уменьш. база (2)'!$A$5:$X$43,9,0) -> 1.793 | L24: 486.19 | M24: 4.91
B25: 73 | C25: ОГАУЗ "Кривошеинская РБ" | D25: =VLOOKUP($B25,'[9]Неполный_уменьш. база (2)'!$A$5:$X$43,3,0) -> 10677 | E25: 189.57 | F25: =VLOOKUP($B25,'[9]Неполный_уменьш. база (2)'!$A$5:$X$43,21,0) -> 1.086925376 | G25: 1 | H25: =VLOOKUP($B25,'[9]Неполный_уменьш. база (2)'!$A$5:$X$43,22,0) -> 1.03103 | I25: =VLOOKUP($B25,'[9]Неполный_уменьш. база (2)'!$A$5:$X$43,8,0) -> 1.113 | J25: до 20,0 тыс. человек | K25: =VLOOKUP($B25,'[9]Неполный_уменьш. база (2)'!$A$5:$X$43,9,0) -> 1.63 | L25: 385.41 | M25: 3.89
B26: 275 | C26: ОГАУЗ "Моряковская УБ им.В.С.Демьянова" | D26: =VLOOKUP($B26,'[9]Неполный_уменьш. база (2)'!$A$5:$X$43,3,0) -> 4453 | E26: 189.57 | F26: =VLOOKUP($B26,'[9]Неполный_уменьш. база (2)'!$A$5:$X$43,21,0) -> 1.158369784 | G26: 1 | H26: =VLOOKUP($B26,'[9]Неполный_уменьш. база (2)'!$A$5:$X$43,22,0) -> 1.70957 | I26: =VLOOKUP($B26,'[9]Неполный_уменьш. база (2)'!$A$5:$X$43,8,0) -> 1.113 | J26: до 20,0 тыс. человек | K26: =VLOOKUP($B26,'[9]Неполный_уменьш. база (2)'!$A$5:$X$43,9,0) -> 1.271 | L26: 531.06 | M26: 5.36
B27: 203 | C27: ОГБУЗ "Парабельская РБ" | D27: =VLOOKUP($B27,'[9]Неполный_уменьш. база (2)'!$A$5:$X$43,3,0) -> 11896 | E27: 189.57 | F27: =VLOOKUP($B27,'[9]Неполный_уменьш. база (2)'!$A$5:$X$43,21,0) -> 1.092188454 | G27: 1 | H27: =VLOOKUP($B27,'[9]Неполный_уменьш. база (2)'!$A$5:$X$43,22,0) -> 1.40774 | I27: =VLOOKUP($B27,'[9]Неполный_уменьш. база (2)'!$A$5:$X$43,8,0) -> 1.113 | J27: до 20,0 тыс. человек | K27: =VLOOKUP($B27,'[9]Неполный_уменьш. база (2)'!$A$5:$X$43,9,0) -> 1.794 | L27: 581.98 | M27: 5.88
B28: 79 | C28: ОГБУЗ "Первомайская РБ" | D28: =VLOOKUP($B28,'[9]Неполный_уменьш. база (2)'!$A$5:$X$43,3,0) -> 15234 | E28: 189.57 | F28: =VLOOKUP($B28,'[9]Неполный_уменьш. база (2)'!$A$5:$X$43,21,0) -> 1.087297371 | G28: 1 | H28: =VLOOKUP($B28,'[9]Неполный_уменьш. база (2)'!$A$5:$X$43,22,0) -> 1.21613 | I28: =VLOOKUP($B28,'[9]Неполный_уменьш. база (2)'!$A$5:$X$43,8,0) -> 1.113 | J28: до 20,0 тыс. человек | K28: =VLOOKUP($B28,'[9]Неполный_уменьш. база (2)'!$A$5:$X$43,9,0) -> 1.272 | L28: 354.88 | M28: 3.58
B29: 83 | C29: ОГАУЗ "Томская РБ" | D29: =VLOOKUP($B29,'[9]Неполный_уменьш. база (2)'!$A$5:$X$43,3,0) -> 31120 | E29: 189.57 | F29: =VLOOKUP($B29,'[9]Неполный_уменьш. база (2)'!$A$5:$X$43,21,0) -> 1.08449517 | G29: 1 | H29: =VLOOKUP($B29,'[9]Неполный_уменьш. база (2)'!$A$5:$X$43,22,0) -> 1 | I29: =VLOOKUP($B29,'[9]Неполный_уменьш. база (2)'!$A$5:$X$43,8,0) -> 1.04 | J29: свыше 20,0 тыс. человек | K29: =VLOOKUP($B29,'[9]Неполный_уменьш. база (2)'!$A$5:$X$43,9,0) -> 1.271 | L29: 271.75 | M29: 2.74
B30: 85 | C30: ОГБУЗ "Чаинская РБ" | D30: =VLOOKUP($B30,'[9]Неполный_уменьш. база (2)'!$A$5:$X$43,3,0) -> 8641 | E30: 189.57 | F30: =VLOOKUP($B30,'[9]Неполный_уменьш. база (2)'!$A$5:$X$43,21,0) -> 1.087870651 | G30: 1 | H30: =VLOOKUP($B30,'[9]Неполный_уменьш. база (2)'!$A$5:$X$43,22,0) -> 1.23704 | I30: =VLOOKUP($B30,'[9]Неполный_уменьш. база (2)'!$A$5:$X$43,8,0) -> 1.113 | J30: до 20,0 тыс. человек | K30: =VLOOKUP($B30,'[9]Неполный_уменьш. база (2)'!$A$5:$X$43,9,0) -> 1.777 | L30: 504.56 | M30: 5.1
B31: 87 | C31: ОГАУЗ "Шегарская РБ" | D31: =VLOOKUP($B31,'[9]Неполный_уменьш. база (2)'!$A$5:$X$43,3,0) -> 16349 | E31: 189.57 | F31: =VLOOKUP($B31,'[9]Неполный_уменьш. база (2)'!$A$5:$X$43,21,0) -> 1.090809609 | G31: 1 | H31: =VLOOKUP($B31,'[9]Неполный_уменьш. база (2)'!$A$5:$X$43,22,0) -> 1.18871 | I31: =VLOOKUP($B31,'[9]Неполный_уменьш. база (2)'!$A$5:$X$43,8,0) -> 1.113 | J31: до 20,0 тыс. человек | K31: =VLOOKUP($B31,'[9]Неполный_уменьш. база (2)'!$A$5:$X$43,9,0) -> 1.242 | L31: 339.79 | M31: 3.43
B32: 29 | C32: ОГАУЗ "Больница № 2" | D32: =VLOOKUP($B32,'[9]Неполный_уменьш. база (2)'!$A$5:$X$43,3,0) -> 35602 | E32: 189.57 | F32: =VLOOKUP($B32,'[9]Неполный_уменьш. база (2)'!$A$5:$X$43,21,0) -> 0.8944240079 | G32: 1 | H32: =VLOOKUP($B32,'[9]Неполный_уменьш. база (2)'!$A$5:$X$43,22,0) -> 0.55663 | I32: =VLOOKUP($B32,'[9]Неполный_уменьш. база (2)'!$A$5:$X$43,8,0) -> 1 | K32: =VLOOKUP($B32,'[9]Неполный_уменьш. база (2)'!$A$5:$X$43,9,0) -> 1.274 | L32: 120.24 | M32: 1.21
B33: 33 | C33: ОГАУЗ "ГКБ № 3 им. Б.И. Альперовича" | D33: =VLOOKUP($B33,'[9]Неполный_уменьш. база (2)'!$A$5:$X$43,3,0) -> 76392 | E33: 189.57 | F33: =VLOOKUP($B33,'[9]Неполный_уменьш. база (2)'!$A$5:$X$43,21,0) -> 0.8676076112 | G33: 1 | H33: =VLOOKUP($B33,'[9]Неполный_уменьш. база (2)'!$A$5:$X$43,22,0) -> 0.96312 | I33: =VLOOKUP($B33,'[9]Неполный_уменьш. база (2)'!$A$5:$X$43,8,0) -> 1 | K33: =VLOOKUP($B33,'[9]Неполный_уменьш. база (2)'!$A$5:$X$43,9,0) -> 1.274 | L33: 201.81 | M33: 2.04
B34: 140 | C34: ОГБУЗ "Медико-санитарная часть № 2" | D34: =VLOOKUP($B34,'[9]Неполный_уменьш. база (2)'!$A$5:$X$43,3,0) -> 79435 | E34: 189.57 | F34: =VLOOKUP($B34,'[9]Неполный_уменьш. база (2)'!$A$5:$X$43,21,0) -> 1.123821786 | G34: 1 | H34: =VLOOKUP($B34,'[9]Неполный_уменьш. база (2)'!$A$5:$X$43,22,0) -> 0.65858 | I34: =VLOOKUP($B34,'[9]Неполный_уменьш. база (2)'!$A$5:$X$43,8,0) -> 1 | K34: =VLOOKUP($B34,'[9]Неполный_уменьш. база (2)'!$A$5:$X$43,9,0) -> 1.274 | L34: 178.75 | M34: 1.81
B35: 49 | C35: ОГАУЗ "МСЧ "Строитель" | D35: =VLOOKUP($B35,'[9]Неполный_уменьш. база (2)'!$A$5:$X$43,3,0) -> 27896 | E35: 189.57 | F35: =VLOOKUP($B35,'[9]Неполный_уменьш. база (2)'!$A$5:$X$43,21,0) -> 0.8606290333 | G35: 1 | H35: =VLOOKUP($B35,'[9]Неполный_уменьш. база (2)'!$A$5:$X$43,22,0) -> 0.44402 | I35: =VLOOKUP($B35,'[9]Неполный_уменьш. база (2)'!$A$5:$X$43,8,0) -> 1 | K35: =VLOOKUP($B35,'[9]Неполный_уменьш. база (2)'!$A$5:$X$43,9,0) -> 1.274 | L35: 92.29 | M35: 0.93
B36: 133 | C36: ОГАУЗ "Детская больница № 1" | D36: =VLOOKUP($B36,'[9]Неполный_уменьш. база (2)'!$A$5:$X$43,3,0) -> 21713 | E36: 189.57 | F36: =VLOOKUP($B36,'[9]Неполный_уменьш. база (2)'!$A$5:$X$43,21,0) -> 1.911707055 | G36: 1 | H36: =VLOOKUP($B36,'[9]Неполный_уменьш. база (2)'!$A$5:$X$43,22,0) -> 1.02105 | I36: =VLOOKUP($B36,'[9]Неполный_уменьш. база (2)'!$A$5:$X$43,8,0) -> 1 | K36: =VLOOKUP($B36,'[9]Неполный_уменьш. база (2)'!$A$5:$X$43,9,0) -> 1.274 | L36: 471.42 | M36: 4.76
B37: 135 | C37: ОГАУЗ "Детская городская больница № 2" | D37: =VLOOKUP($B37,'[9]Неполный_уменьш. база (2)'!$A$5:$X$43,3,0) -> 57877 | E37: 189.57 | F37: =VLOOKUP($B37,'[9]Неполный_уменьш. база (2)'!$A$5:$X$43,21,0) -> 1.910574608 | G37: 1 | H37: =VLOOKUP($B37,'[9]Неполный_уменьш. база (2)'!$A$5:$X$43,22,0) -> 0.97086 | I37: =VLOOKUP($B37,'[9]Неполный_уменьш. база (2)'!$A$5:$X$43,8,0) -> 1 | K37: =VLOOKUP($B37,'[9]Неполный_уменьш. база (2)'!$A$5:$X$43,9,0) -> 1.274 | L37: 447.98 | M37: 4.53
B38: 232 | C38: ОГБУЗ "Лоскутовская РП" | D38: =VLOOKUP($B38,'[9]Неполный_уменьш. база (2)'!$A$5:$X$43,3,0) -> 26630 | E38: 189.57 | F38: =VLOOKUP($B38,'[9]Неполный_уменьш. база (2)'!$A$5:$X$43,21,0) -> 1.185563344 | G38: 1 | H38: =VLOOKUP($B38,'[9]Неполный_уменьш. база (2)'!$A$5:$X$43,22,0) -> 1 | I38: =VLOOKUP($B38,'[9]Неполный_уменьш. база (2)'!$A$5:$X$43,8,0) -> 1.04 | J38: свыше 20,0 тыс. человек | K38: =VLOOKUP($B38,'[9]Неполный_уменьш. база (2)'!$A$5:$X$43,9,0) -> 1.271 | L38: 297.08 | M38: 3
B39: 231 | C39: ОГАУЗ "Светленская РБ" | D39: =VLOOKUP($B39,'[9]Неполный_уменьш. база (2)'!$A$5:$X$43,3,0) -> 31736 | E39: 189.57 | F39: =VLOOKUP($B39,'[9]Неполный_уменьш. база (2)'!$A$5:$X$43,21,0) -> 1.102192575 | G39: 1 | H39: =VLOOKUP($B39,'[9]Неполный_уменьш. база (2)'!$A$5:$X$43,22,0) -> 1.26558 | I39: =VLOOKUP($B39,'[9]Неполный_уменьш. база (2)'!$A$5:$X$43,8,0) -> 1.04 | J39: свыше 20,0 тыс. человек | K39: =VLOOKUP($B39,'[9]Неполный_уменьш. база (2)'!$A$5:$X$43,9,0) -> 1.271 | L39: 349.54 | M39: 3.53
B40: 35 | C40: ОГАУЗ "Межвузовская поликлиника" | D40: =VLOOKUP($B40,'[9]Неполный_уменьш. база (2)'!$A$5:$X$43,3,0) -> 45996 | E40: 189.57 | F40: =VLOOKUP($B40,'[9]Неполный_уменьш. база (2)'!$A$5:$X$43,21,0) -> 0.6879828433 | G40: 1 | H40: =VLOOKUP($B40,'[9]Неполный_уменьш. база (2)'!$A$5:$X$43,22,0) -> 0.70157 | I40: =VLOOKUP($B40,'[9]Неполный_уменьш. база (2)'!$A$5:$X$43,8,0) -> 1 | K40: =VLOOKUP($B40,'[9]Неполный_уменьш. база (2)'!$A$5:$X$43,9,0) -> 1.274 | L40: 116.57 | M40: 1.18
B41: 4 | C41: ОГАУЗ "Поликлиника № 4" | D41: =VLOOKUP($B41,'[9]Неполный_уменьш. база (2)'!$A$5:$X$43,3,0) -> 55112 | E41: 189.57 | F41: =VLOOKUP($B41,'[9]Неполный_уменьш. база (2)'!$A$5:$X$43,21,0) -> 0.8304356687 | G41: 1 | H41: =VLOOKUP($B41,'[9]Неполный_уменьш. база (2)'!$A$5:$X$43,22,0) -> 0.72387 | I41: =VLOOKUP($B41,'[9]Неполный_уменьш. база (2)'!$A$5:$X$43,8,0) -> 1 | K41: =VLOOKUP($B41,'[9]Неполный_уменьш. база (2)'!$A$5:$X$43,9,0) -> 1.274 | L41: 145.18 | M41: 1.47
B42: 10 | C42: ОГАУЗ "Поликлиника № 10" | D42: =VLOOKUP($B42,'[9]Неполный_уменьш. база (2)'!$A$5:$X$43,3,0) -> 91401 | E42: 189.57 | F42: =VLOOKUP($B42,'[9]Неполный_уменьш. база (2)'!$A$5:$X$43,21,0) -> 0.8375186263 | G42: 1 | H42: =VLOOKUP($B42,'[9]Неполный_уменьш. база (2)'!$A$5:$X$43,22,0) -> 0.60656 | I42: =VLOOKUP($B42,'[9]Неполный_уменьш. база (2)'!$A$5:$X$43,8,0) -> 1 | K42: =VLOOKUP($B42,'[9]Неполный_уменьш. база (2)'!$A$5:$X$43,9,0) -> 1.274 | L42: 122.69 | M42: 1.24
B43: 13 | C43: ОГБУЗ "Поликлиника ТНЦ СО РАН" | D43: =VLOOKUP($B43,'[9]Неполный_уменьш. база (2)'!$A$5:$X$43,3,0) -> 23606 | E43: 189.57 | F43: =VLOOKUP($B43,'[9]Неполный_уменьш. база (2)'!$A$5:$X$43,21,0) -> 1.213175652 | G43: 1 | H43: =VLOOKUP($B43,'[9]Неполный_уменьш. база (2)'!$A$5:$X$43,22,0) -> 0.65646 | I43: =VLOOKUP($B43,'[9]Неполный_уменьш. база (2)'!$A$5:$X$43,8,0) -> 1 | K43: =VLOOKUP($B43,'[9]Неполный_уменьш. база (2)'!$A$5:$X$43,9,0) -> 1.274 | L43: 192.34 | M43: 1.94
B44: 354 | C44: ФГБУ СибФНКЦ ФМБА России | D44: =VLOOKUP($B44,'[9]Неполный_уменьш. база (2)'!$A$5:$X$43,3,0) -> 104548 | E44: 189.57 | F44: =VLOOKUP($B44,'[9]Неполный_уменьш. база (2)'!$A$5:$X$43,21,0) -> 1.065929518 | G44: 1 | H44: =VLOOKUP($B44,'[9]Неполный_уменьш. база (2)'!$A$5:$X$43,22,0) -> 1 | I44: =VLOOKUP($B44,'[9]Неполный_уменьш. база (2)'!$A$5:$X$43,8,0) -> 1 | K44: =VLOOKUP($B44,'[9]Неполный_уменьш. база (2)'!$A$5:$X$43,9,0) -> 1.381 | L44: 279.06 | M44: 2.82
B45: 173 | C45: ФГБОУ ВО СибГМУ Минздрава России | D45: =VLOOKUP($B45,'[9]Неполный_уменьш. база (2)'!$A$5:$X$43,3,0) -> 857 | E45: 189.57 | F45: =VLOOKUP($B45,'[9]Неполный_уменьш. база (2)'!$A$5:$X$43,21,0) -> 0.751824114 | G45: 1 | H45: =VLOOKUP($B45,'[9]Неполный_уменьш. база (2)'!$A$5:$X$43,22,0) -> 1.2591 | I45: =VLOOKUP($B45,'[9]Неполный_уменьш. база (2)'!$A$5:$X$43,8,0) -> 1 | K45: =VLOOKUP($B45,'[9]Неполный_уменьш. база (2)'!$A$5:$X$43,9,0) -> 1.274 | L45: 228.62 | M45: 2.31
B46: 151 | C46: ФКУЗ "МСЧ МВД России по Томской области" | D46: =VLOOKUP($B46,'[9]Неполный_уменьш. база (2)'!$A$5:$X$43,3,0) -> 4705 | E46: 189.57 | F46: =VLOOKUP($B46,'[9]Неполный_уменьш. база (2)'!$A$5:$X$43,21,0) -> 0.8185796173 | G46: 1 | H46: =VLOOKUP($B46,'[9]Неполный_уменьш. база (2)'!$A$5:$X$43,22,0) -> 1.15642 | I46: =VLOOKUP($B46,'[9]Неполный_уменьш. база (2)'!$A$5:$X$43,8,0) -> 1 | K46: =VLOOKUP($B46,'[9]Неполный_уменьш. база (2)'!$A$5:$X$43,9,0) -> 1.274 | L46: 228.62 | M46: 2.31
B47: 205 | C47: ООО "ЦСМ" | D47: =VLOOKUP($B47,'[9]Неполный_уменьш. база (2)'!$A$5:$X$43,3,0) -> 21769 | E47: 189.57 | F47: =VLOOKUP($B47,'[9]Неполный_уменьш. база (2)'!$A$5:$X$43,21,0) -> 0.8332128795 | G47: 1 | H47: =VLOOKUP($B47,'[9]Неполный_уменьш. база (2)'!$A$5:$X$43,22,0) -> 0.74412 | I47: =VLOOKUP($B47,'[9]Неполный_уменьш. база (2)'!$A$5:$X$43,8,0) -> 1 | K47: =VLOOKUP($B47,'[9]Неполный_уменьш. база (2)'!$A$5:$X$43,9,0) -> 1.274 | L47: 149.74 | M47: 1.51
B48: 294 | C48: ООО "СибМедЦентр" | D48: =VLOOKUP($B48,'[9]Неполный_уменьш. база (2)'!$A$5:$X$43,3,0) -> 657 | E48: 189.57 | F48: =VLOOKUP($B48,'[9]Неполный_уменьш. база (2)'!$A$5:$X$43,21,0) -> 0.7663711911 | G48: 1 | H48: =VLOOKUP($B48,'[9]Неполный_уменьш. база (2)'!$A$5:$X$43,22,0) -> 1.06599 | I48: =VLOOKUP($B48,'[9]Неполный_уменьш. база (2)'!$A$5:$X$43,8,0) -> 1.113 | J48: до 20,0 тыс. человек | K48: =VLOOKUP($B48,'[9]Неполный_уменьш. база (2)'!$A$5:$X$43,9,0) -> 1.765 | L48: 304.23 | M48: 3.07
B49: 355 | C49: ООО "ЦКБ" | D49: =VLOOKUP($B49,'[9]Неполный_уменьш. база (2)'!$A$5:$X$43,3,0) -> 10 | E49: 189.57 | F49: =VLOOKUP($B49,'[9]Неполный_уменьш. база (2)'!$A$5:$X$43,21,0) -> 0.6349268248 | G49: 1 | H49: =VLOOKUP($B49,'[9]Неполный_уменьш. база (2)'!$A$5:$X$43,22,0) -> 0.97651 | I49: =VLOOKUP($B49,'[9]Неполный_уменьш. база (2)'!$A$5:$X$43,8,0) -> 1 | K49: =VLOOKUP($B49,'[9]Неполный_уменьш. база (2)'!$A$5:$X$43,9,0) -> 1.274 | L49: 149.74 | M49: 1.51

Sheet Приложение №3
A1: _Оглавление_
B2: =MID(CELL("filename",A2),SEARCH("]",CELL("filename",A2))+1,31) -> Приложение №3
B3: ='Приложение № 2'!B3 -> к Дополнительному соглашению № 5
B4: =_Оглавление_!A3 -> от 31.05.2024
B5: к Тарифному соглашению
B6: на оплату медицинской помощи
B7: по ОМС на территории Томской области на 2024 год
B8: от 05.02.2024
B10: Приложение № 31
B11: к Тарифному соглашению
B12: на оплату медицинской помощи
B13: по ОМС на территории Томской области на 2024 год
B14: от 05.02.2024
B16: Коэффициенты сложности лечения пациента для оплаты медицинской помощи, оказанной в стационарных условиях и в условиях дневного стационара, по КСГ, в том числе лицам, застрахованным за пределами Томской области
C18: Случаи, для которых установлен КСЛП | F18: Коэффициент сложности лечения пациента
B19: 1 | C19: предоставление спального места и питания законному представителю несовершеннолетних (детей до 4 лет, детей старше 4 лет при наличии медицинских показаний, детей-инвалидов в возрасте до 18 лет), за исключением случаев, к которым применяется КСЛП, предусмотренный пунктом 2 настоящего перечня | F19: 0.2
B20: 2 | C20: предоставление спального места и питания законному представителю несовершеннолетних (детей до 4 лет, детей старше 4 лет при наличии медицинских показаний, детей-инвалидов в возрасте до 18 лет), получающих медицинскую помощь по профилю «детская онкология» и (или) «гематология» | F20: 0.6
B21: 3 | C21: оказание медицинской помощи пациенту в возрасте старше 75 лет в случае проведения консультации врача-гериатра, за исключением случаев госпитализации на геронтологические профильные койки | F21: 0.2
B22: 4 | C22: развертывание индивидуального поста | F22: 0.2
B23: 5 | C23: наличие у пациента тяжелой сопутствующей патологии, требующей оказания медицинской помощи в период госпитализации: - сахарный диабет типа 1 и 2; - заболевания, включенные в Перечень редких (орфанных) заболеваний, размещенный на официальном сайте Министерства здравоохранения Российской Федерации ; - рассеянный склероз (G35); - хронический лимфоцитарный лейкоз (С91.1); - состояния после трансплантации органов и (или) тканей (Z94.0; Z94.1; Z94.4; Z94.8); - детский церебральный паралич (G80); - ВИЧ/СПИД, стадии 4Б и 4В, взрослые (B20 – B24); - перинатальный контакт по ВИЧ-инфекции, дети (Z20.6) | F23: 0.6
B24: 6 | C24: проведение сочетанных хирургических вмешательств (уровень 1) : | F24: 0.05
C25: операция 1 | E25: операция 2
C26: A16.01.031 | D26: Устранение рубцовой деформации | E26: A16.01.017.001 | F26: Удаление доброкачественных новообразований кожи методом электрокоагуляции
C27: A16.01.031 | D27: Устранение рубцовой деформации | E27: A16.01.017 | F27: Удаление доброкачественных новообразований кожи
C28: A16.01.013 | D28: Удаление сосудистой мальформации | E28: A16.01.017 | F28: Удаление доброкачественных новообразований кожи
C29: A16.01.013 | D29: Удаление сосудистой мальформации | E29: A16.01.017.001 | F29: Удаление доброкачественных новообразований кожи методом электрокоагуляции
C30: A16.18.027 | D30: Эндоскопическое электрохирургическое удаление новообразования толстой кишки | E30: A16.19.017 | F30: Удаление полипа анального канала и прямой кишки
C31: A16.18.027 | D31: Эндоскопическое электрохирургическое удаление новообразования толстой кишки | E31: A16.19.003.001 | F31: Иссечение анальной трещины
C32: A16.26.093 | D32: Факоэмульсификация без интраокулярной линзы. Факофрагментация, факоаспирация | E32: A16.26.073.003 | F32: Проникающая склерэктомия
C33: A16.26.093.002 | D33: Факоэмульсификация с имплантацией интраокулярной линзы | E33: A16.26.070 | F33: Модифицированная синустрабекулэктомия
C34: A16.26.093.001 | D34: Факоэмульсификация с использованием фемтосекундного лазера | E34: A16.26.070 | F34: Модифицированная синустрабекулэктомия
C35: A16.26.049.008 | D35: Сквозная кератопластика | E35: A16.26.092 | F35: Экстракапсулярная экстракция катаракты с имплантацией ИОЛ
C36: A16.07.061.001 | D36: Хейлоринопластика (устранение врожденной расщелины верхней губы) | E36: A16.07.042 | F36: Пластика уздечки верхней губы
C37: A16.07.061.001 | D37: Хейлоринопластика (устранение врожденной расщелины верхней губы) | E37: A16.07.044 | F37: Пластика уздечки языка
C38: A16.07.066 | D38: Уранопластика (устранение врожденной расщелины твердого и мягкого неба) | E38: A16.07.042 | F38: Пластика уздечки верхней губы
C39: A16.07.066 | D39: Уранопластика (устранение врожденной расщелины твердого и мягкого неба) | E39: A16.07.044 | F39: Пластика уздечки языка
C40: A16.30.014 | D40: Экстирпация срединных кист и свищей шеи | E40: A16.01.018 | F40: Удаление доброкачественных новообразований подкожно-жировой клетчатки
C41: A16.30.014 | D41: Экстирпация срединных кист и свищей шеи | E41: A16.01.017 | F41: Удаление доброкачественных новообразований кожи
C42: A16.30.015 | D42: Экстирпация боковых свищей шеи | E42: A16.01.018 | F42: Удаление доброкачественных новообразований подкожно-жировой клетчатки
C43: A16.30.015 | D43: Экстирпация боковых свищей шеи | E43: A16.01.017 | F43: Удаление доброкачественных новообразований кожи
C44: A16.07.016 | D44: Цистотомия или цистэктомия | E44: A16.01.018 | F44: Удаление доброкачественных новообразований подкожно-жировой клетчатки
C45: A16.01.031 | D45: Устранение рубцовой деформации | E45: A16.01.018 | F45: Удаление доброкачественных новообразований подкожно-жировой клетчатки
C46: A16.01.013 | D46: Удаление сосудистой мальформации | E46: A16.01.018 | F46: Удаление доброкачественных новообразований подкожно-жировой клетчатки
C47: A16.26.106 | D47: Удаление инородного тела, новообразования из глазницы | E47: A16.26.111 | F47: Пластика века (блефаропластика) без и с пересадкой тканей
C48: A16.07.016 | D48: Цистотомия или цистэктомия | E48: A16.07.042 | F48: Пластика уздечки верхней губы
C49: A16.07.016 | D49: Цистотомия или цистэктомия | E49: A16.07.043 | F49: Пластика уздечки нижней губы
B50: 7 | C50: проведение сочетанных хирургических вмешательств (уровень 2): | F50: 0.47
C51: Операция 1 | E51: Операция 2
C52: A16.12.009 | D52: Тромбэндартерэктомия | E52: A06.12.015 | F52: Ангиография бедренной артерии прямая, обеих сторон
C53: A16.12.009.001 | D53: Тромбоэктомия из сосудистого протеза | E53: A06.12.015 | F53: Ангиография бедренной артерии прямая, обеих сторон
C54: A16.12.038.006 | D54: Бедренно - подколенное шунтирование | E54: A06.12.015 | F54: Ангиография бедренной артерии прямая, обеих сторон
C55: A16.12.008.001 | D55: Эндартерэктомия каротидная | E55: A06.12.005 | F55: Ангиография внутренней сонной артерии
C56: A16.12.038.008 | D56: Сонно-подключичное шунтирование | E56: A06.12.007 | F56: Ангиография артерий верхней конечности прямая
C57: A16.12.006.001 | D57: Удаление поверхностных вен нижней конечности | E57: A16.30.001 | F57: Оперативное лечение пахово-бедренной грыжи
C58: A16.12.006.001 | D58: Удаление поверхностных вен нижней конечности | E58: A16.30.001.001 | F58: Оперативное лечение пахово-бедренной грыжи с использованием видеоэндоскопических технологий
C59: A16.12.006.001 | D59: Удаление поверхностных вен нижней конечности | E59: A16.30.001.002 | F59: Оперативное лечение пахово-бедренной грыжи с использованием сетчатых имплантов
C60: A16.14.009 | D60: Холецистэктомия | E60: A16.30.002 | F60: Оперативное лечение пупочной грыжи
C61: A16.14.009 | D61: Холецистэктомия | E61: A16.30.003 | F61: Оперативное лечение околопупочной грыжи
C62: A16.14.009 | D62: Холецистэктомия | E62: A16.30.004 | F62: Оперативное лечение грыжи передней брюшной стенки
C63: A16.14.009.002 | D63: Холецистэктомия лапароскопическая | E63: A16.30.002 | F63: Оперативное лечение пупочной грыжи
C64: A16.14.009.002 | D64: Холецистэктомия лапароскопическая | E64: A16.30.003 | F64: Оперативное лечение околопупочной грыжи
C65: A16.14.009.002 | D65: Холецистэктомия лапароскопическая | E65: A16.30.004 | F65: Оперативное лечение грыжи передней брюшной стенки
C66: A16.14.009.001 | D66: Холецистэктомия малоинвазивная | E66: A16.30.002 | F66: Оперативное лечение пупочной грыжи
C67: A16.14.009.001 | D67: Холецистэктомия малоинвазивная | E67: A16.30.003 | F67: Оперативное лечение околопупочной грыжи
C68: A16.14.009.001 | D68: Холецистэктомия малоинвазивная | E68: A16.30.004 | F68: Оперативное лечение грыжи передней брюшной стенки
C69: A16.09.026.004 | D69: Пластика диафрагмы с использованием видеоэндоскопических технологий | E69: A16.16.006.001 | F69: Бужирование пищевода эндоскопическое
C70: A16.22.001 | D70: Гемитиреоидэктомия | E70: A16.14.009.002 | F70: Холецистэктомия лапароскопическая
C71: A16.22.001 | D71: Гемитиреоидэктомия | E71: A16.30.001 | F71: Оперативное лечение пахово-бедренной грыжи
C72: A16.22.001 | D72: Гемитиреоидэктомия | E72: A16.30.001.001 | F72: Оперативное лечение пахово-бедренной грыжи с использованием видеоэндоскопических технологий
C73: A16.22.001 | D73: Гемитиреоидэктомия | E73: A16.30.001.002 | F73: Оперативное лечение пахово-бедренной грыжи с использованием сетчатых имплантов
C74: A16.22.001 | D74: Гемитиреоидэктомия | E74: A16.30.002 | F74: Оперативное лечение пупочной грыжи
C75: A16.22.001 | D75: Гемитиреоидэктомия | E75: A16.30.002.001 | F75: Оперативное лечение пупочной грыжи с использованием видеоэндоскопических технологий
C76: A16.22.001 | D76: Гемитиреоидэктомия | E76: A16.30.004 | F76: Оперативное лечение грыжи передней брюшной стенки
C77: A16.20.032 | D77: Резекция молочной железы | E77: A16.20.004 | F77: Сальпингэктомия лапаротомическая
C78: A16.20.032 | D78: Резекция молочной железы | E78: A16.20.017 | F78: Удаление параовариальной кисты лапаротомическое
C79: A16.20.032 | D79: Резекция молочной железы | E79: A16.20.061 | F79: Резекция яичника лапаротомическая
C80: A16.20.005 | D80: Кесарево сечение | E80: A16.20.041 | F80: Стерилизация маточных труб лапаротомическая
C81: A16.20.005 | D81: Кесарево сечение | E81: A16.20.075 | F81: Перевязка маточных артерий
C82: A16.20.063.001 | D82: Влагалищная экстирпация матки с придатками с использованием видеоэндоскопических технологий | E82: A16.20.083 | F82: Кольпоперинеоррафия и леваторопластика
C83: A16.16.033.001 | D83: Фундопликация лапароскопическая | E83: A16.14.009.002 | F83: Холецистэктомия лапароскопическая
C84: A16.18.027 | D84: Эндоскопическое электрохирургическое удаление новообразования толстой кишки | E84: A16.19.013 | F84: Удаление геморроидальных узлов
C85: A16.28.071.001 | D85: Иссечение кисты почки лапароскопическое | E85: A16.20.001.001 | F85: Удаление кисты яичника с использованием видеоэндоскопических технологий
C86: A16.21.002 | D86: Трансуретральная резекция простаты | E86: A16.28.085 | F86: Трансуретральная эндоскопическая цистолитотрипсия
C87: A16.26.111.001 | D87: Пластика верхних век без пересадки тканей чрескожным доступом | E87: A16.26.041.001 | F87: Пластика конъюнктивальной полости с использованием свободного лоскута слизистой со щеки
C88: A16.26.145 | D88: Пластика опорно­двигательной культи при анофтальме | E88: A16.26.041.001 | F88: Пластика конъюнктивальной полости с использованием свободного лоскута слизистой со щеки
C89: A16.19.013 | D89: Удаление геморроидальных узлов | E89: A16.19.003.001 | F89: Иссечение анальной трещины
C90: A16.26.093 | D90: Факоэмульсификация без интраокулярной линзы. Факофрагментация, факоаспирация | E90: A16.26.069 | F90: Трабекулотомия
C91: A16.26.093 | D91: Факоэмульсификация без интраокулярной линзы. Факофрагментация, факоаспирация | E91: A16.26.146 | F91: Реконструкция угла передней камеры глаза
C92: A16.30.004.011 | D92: Оперативное лечение грыжи передней брюшной стенки с использованием сетчатых имплантов | E92: A16.30.001.002 | F92: Оперативное лечение пахово-бедренной грыжи с использованием сетчатых имплантов
C93: A16.30.004.011 | D93: Оперативное лечение грыжи передней брюшной стенки с использованием сетчатых имплантов | E93: A16.30.001.001 | F93: Оперативное лечение пахово-бедренной грыжи с использованием видеоэндоскопических технологий
C94: A16.30.002.001 | D94: Оперативное лечение пупочной грыжи с использованием видеоэндоскопических технологий | E94: A16.30.001.002 | F94: Оперативное лечение пахово-бедренной грыжи с использованием сетчатых имплантов
C95: A16.30.002.001 | D95: Оперативное лечение пупочной грыжи с использованием видеоэндоскопических технологий | E95: A16.30.001.001 | F95: Оперативное лечение пахово-бедренной грыжи с использованием видеоэндоскопических технологий
C96: A16.30.002 | D96: Оперативное лечение пупочной грыжи | E96: A16.30.001 | F96: Оперативное лечение пахово-бедренной грыжи
C97: A16.30.004 | D97: Оперативное лечение грыжи передней брюшной стенки | E97: A16.30.001 | F97: Оперативное лечение пахово-бедренной грыжи
C98: A16.08.013.001 | D98: Пластика носовой перегородки с использованием видеоэндоскопических технологий | E98: A16.08.017.001 | F98: Гайморотомия с использованием видеоэндоскопических технологий
C99: A16.26.093 | D99: Факоэмульсификация без интраокулярной линзы. Факофрагментация, факоаспирация | E99: A16.26.115 | F99: Удаление силиконового масла (или иного высокомолекулярного соединения) из витреальной полости
C100: A16.26.099 | D100: Эвисцерация глазного яблока | E100: A16.26.041.001 | F100: Пластика конъюнктивальной полости с использованием свободного лоскута слизистой со щеки
C101: A16.26.115 | D101: Удаление силиконового масла (или иного высокомолекулярного соединения) из витреальной полости | E101: A16.26.094 | F101: Имплантация интраокулярной линзы
C102: A16.12.019.001 | D102: Ревизия бедренных артерий | E102: A16.12.028 | F102: Установка стента в сосуд
C103: A16.12.019.001 | D103: Ревизия бедренных артерий | E103: A16.12.026 | F103: Баллонная вазодилатация
C104: A16.12.019.001 | D104: Ревизия бедренных артерий | E104: А16.12.026.018 | F104: Баллонная ангиопластика подвздошной артерии
C105: A16.14.009 | D105: Холецистэктомия | E105: A16.30.002.001 | F105: Оперативное лечение пупочной грыжи с использованием видеоэндоскопических технологий
C106: A16.14.009 | D106: Холецистэктомия | E106: A16.30.002.002 | F106: Оперативное лечение пупочной грыжи с использованием сетчатых имплантов
C107: A16.14.009 | D107: Холецистэктомия | E107: A16.30.004.011 | F107: Оперативное лечение грыжи передней брюшной стенки с использованием сетчатых имплантов
C108: A16.14.009.002 | D108: Холецистэктомия лапароскопическая | E108: A16.30.002.001 | F108: Оперативное лечение пупочной грыжи с использованием видеоэндоскопических технологий
C109: A16.14.009.002 | D109: Холецистэктомия лапароскопическая | E109: A16.30.002.002 | F109: Оперативное лечение пупочной грыжи с использованием сетчатых имплантов
C110: A16.14.009.002 | D110: Холецистэктомия лапароскопическая | E110: A16.30.004.011 | F110: Оперативное лечение грыжи передней брюшной стенки с использованием сетчатых имплантов
C111: A16.14.009.001 | D111: Холецистэктомия малоинвазивная | E111: A16.30.002.001 | F111: Оперативное лечение пупочной грыжи с использованием видеоэндоскопических технологий
C112: A16.14.009.001 | D112: Холецистэктомия малоинвазивная | E112: A16.30.002.002 | F112: Оперативное лечение пупочной грыжи с использованием сетчатых имплантов
C113: A16.14.009.001 | D113: Холецистэктомия малоинвазивная | E113: A16.30.004.011 | F113: Оперативное лечение грыжи передней брюшной стенки с использованием сетчатых имплантов
C114: A16.30.003 | D114: Оперативное лечение околопупочной грыжи | E114: A16.30.001.002 | F114: Оперативное лечение пахово-бедренной грыжи с использованием сетчатых имплантов
C115: A16.30.002 | D115: Оперативное лечение пупочной грыжи | E115: A16.30.001.002 | F115: Оперативное лечение пахово-бедренной грыжи с использованием сетчатых имплантов
C116: A16.30.004 | D116: Оперативное лечение грыжи передней брюшной стенки | E116: A16.30.001.002 | F116: Оперативное лечение пахово-бедренной грыжи с использованием сетчатых имплантов
C117: A16.30.002 | D117: Оперативное лечение пупочной грыжи | E117: A16.16.033.001 | F117: Фундопликация лапароскопическая
C118: A16.30.002 | D118: Оперативное лечение пупочной грыжи | E118: A16.09.026.004 | F118: Пластика диафрагмы с использованием видеоэндоскопических технологий
C119: A16.30.005.003 | D119: Устранение грыжи пищеводного отверстия диафрагмы с использованием видеоэндоскопических технологий | E119: A16.16.046.002 | F119: Лапароскопическая диафрагмокрурорафия
C120: A16.30.005.003 | D120: Устранение грыжи пищеводного отверстия диафрагмы с использованием видеоэндоскопических технологий | E120: A16.16.033.001 | F120: Фундопликация лапароскопическая
C121: A16.20.043 | D121: Мастэктомия | E121: A16.20.011.002 | F121: Тотальная гистерэктомия (экстирпация матки) с придатками лапаротомическая
C122: A16.20.005 | D122: Кесарево сечение | E122: A16.20.035 | F122: Миомэктомия (энуклеация миоматозных узлов) лапаротомическая
C123: A16.20.005 | D123: Кесарево сечение | E123: A16.20.001 | F123: Удаление кисты яичника
C124: A16.20.005 | D124: Кесарево сечение | E124: A16.20.061 | F124: Резекция яичника лапаротомическая
C125: A16.20.005 | D125: Кесарево сечение | E125: A16.20.039 | F125: Метропластика лапаротомическая
C126: A16.20.083 | D126: Кольпоперинеоррафия и леваторопластика | E126: A16.20.042.001 | F126: Слинговые операции при недержании мочи
C127: A16.14.009.002 | D127: Холецистэктомия лапароскопическая | E127: A16.20.063.001 | F127: Влагалищная экстирпация матки с придатками с использованием видеоэндоскопических технологий
C128: A16.18.009.001 | D128: Аппендэктомия с использованием видеоэндоскопических технологий | E128: A16.20.061.001 | F128: Резекция яичника с использованием видеоэндоскопических технологий
C129: A16.18.009 | D129: Аппендэктомия | E129: A16.20.061 | F129: Резекция яичника лапаротомическая
C130: A16.28.054 | D130: Трансуретральная уретеролитоэкстракция | E130: A16.28.003.001 | F130: Лапароскопическая резекция почки
C131: A16.26.093 | D131: Факоэмульсификация без интраокулярной линзы. Факофрагментация, факоаспирация | E131: A16.26.049 | F131: Кератопластика (трансплантация роговицы)
C132: A16.26.093 | D132: Факоэмульсификация без интраокулярной линзы. Факофрагментация, факоаспирация | E132: A16.26.087 | F132: Замещение стекловидного тела
C133: A16.26.098 | D133: Энуклеация глазного яблока | E133: A16.26.041.001 | F133: Пластика конъюнктивальной полости с использованием свободного лоскута слизистой со щеки
C134: A16.26.115 | D134: Удаление силиконового масла (или иного высокомолекулярного соединения) из витреальной полости | E134: A16.26.093.002 | F134: Факоэмульсификация с имплантацией интраокулярной линзы
C135: A16.26.094 | D135: Имплантация интраокулярной линзы | E135: A16.26.086.001 | F135: Интравитреальное введение лекарственных препаратов
B136: 8 | C136: проведение сочетанных хирургических вмешательств (уровень 3): | F136: 1.16
C137: Операция 1 | E137: Операция 2
C138: A16.22.001 | D138: Гемитиреоидэктомия | E138: A16.30.002.002 | F138: Оперативное лечение пупочной грыжи с использованием сетчатых имплантов
C139: A16.18.016 | D139: Гемиколэктомия правосторонняя | E139: A16.14.030 | F139: Резекция печени атипичная
C140: A16.30.002.002 | D140: Оперативное лечение пупочной грыжи с использованием сетчатых имплантов | E140: A16.30.001.002 | F140: Оперативное лечение пахово-бедренной грыжи с использованием сетчатых имплантов
C141: A16.30.002.002 | D141: Оперативное лечение пупочной грыжи с использованием сетчатых имплантов | E141: A16.30.001.001 | F141: Оперативное лечение пахово-бедренной грыжи с использованием видеоэндоскопических технологий
C142: A16.26.093.002 | D142: Факоэмульсификация с имплантацией интраокулярной линзы | E142: A16.26.049.005 | F142: Неавтоматизированная эндотекатопластика
C143: A16.26.049.004 | D143: Послойная кератопластика | E143: A16.26.093.002 | F143: Факоэмульсификация с имплантацией интраокулярной линзы
C144: A16.26.089.002 | D144: Витреоэктомия задняя субтотальная закрытая | E144: A16.26.093.002 | F144: Факоэмульсификация с имплантацией интраокулярной линзы
B145: 9 | C145: проведение сочетанных хирургических вмешательств (уровень 4) : | F145: 2.07
C146: Операция 1 | E146: Операция 2
C147: A16.09.026.004 | D147: Пластика диафрагмы с использованием видеоэндоскопических технологий | E147: A16.16.032.002 | F147: Эндоскопическая кардиодилятация пищевода баллонным кардиодилятатором
C148: A16.28.004.001 | D148: Лапароскопическая нефрэктомия | E148: A16.21.002 | F148: Трансуретральная резекция простаты
C149: A16.26.089.002 | D149: Витреоэктомия задняя субтотальная закрытая | E149: A16.26.094 | F149: Имплантация интраокулярной линзы
C150: A16.26.089.002 | D150: Витреоэктомия задняя субтотальная закрытая | E150: A16.26.082 | F150: Круговое эпиклеральное пломбирование
C151: A16.12.011.008 | D151: Пластика глубокой бедренной артерии | E151: A16.12.026 | F151: Баллонная вазодилатация
C152: A16.26.093.001 | D152: Факоэмульсификация с использованием фемтосекундного лазера | E152: A16.26.049.005 | F152: Неавтоматизированная эндотекатопластика
C153: A16.26.093.001 | D153: Факоэмульсификация с использованием фемтосекундного лазера | E153: A16.26.093.002 | F153: Факоэмульсификация с имплантацией интраокулярной линзы
C154: A16.30.005.003 | D154: Устранение грыжи пищеводного отверстия диафрагмы с использованием видеоэндоскопических технологий | E154: A16.30.005.001 | F154: Пластика диафрагмы с использованием импланта
C155: A16.20.014 | D155: Влагалищная тотальная гистерэктомия (экстирпация матки) с придатками | E155: A16.20.042.001 | F155: Слинговые операции при недержании мочи
C156: A16.20.063.001 | D156: Влагалищная экстирпация матки с придатками с использованием видеоэндоскопических технологий | E156: A16.20.042.001 | F156: Слинговые операции при недержании мочи
C157: A16.26.049.004 | D157: Послойная кератопластика | E157: A16.26.093.001 | F157: Факоэмульсификация с использованием фемтосекундного лазера
C158: A16.12.009.001 | D158: Тромбоэктомия из сосудистого протеза | E158: А16.12.026.018 | F158: Баллонная ангиопластика подвздошной артерии
C159: A16.12.038.006 | D159: Бедренно - подколенное шунтирование | E159: А16.12.026.018 | F159: Баллонная ангиопластика подвздошной артерии
C160: A16.12.009.001 | D160: Тромбоэктомия из сосудистого протеза | E160: A16.12.028 | F160: Установка стента в сосуд
C161: A16.12.011.008 | D161: Пластика глубокой бедренной артерии | E161: A16.12.028 | F161: Установка стента в сосуд
C162: A16.12.011.008 | D162: Пластика глубокой бедренной артерии | E162: А16.12.026.018 | F162: Баллонная ангиопластика подвздошной артерии
C163: A16.12.009 | D163: Тромбэндартерэктомия | E163: A16.12.028 | F163: Установка стента в сосуд
C164: A16.12.009 | D164: Тромбэндартерэктомия | E164: А16.12.026.018 | F164: Баллонная ангиопластика подвздошной артерии
C165: A16.12.038.006 | D165: Бедренно - подколенное шунтирование | E165: A16.12.026.002 | F165: Баллонная ангиопластика подколенной артерии и магистральных артерий голени
C166: A16.12.038.006 | D166: Бедренно - подколенное шунтирование | E166: A16.12.026.004 | F166: Баллонная ангиопластика со стентированием подколенной артерии и магистральных артерий голени
C167: A16.26.089.002 | D167: Витреоэктомия задняя субтотальная закрытая | E167: A16.26.093.001 | F167: Факоэмульсификация с использованием фемтосекундного лазера
B168: 10 | C168: проведение однотипных операций на парных органах (уровень 1) : | F168: 0.05
C169: A16.26.007 | D169: Пластика слезных точек и слезных канальцев
C170: A16.26.019 | D170: Устранение эпикантуса
C171: A16.26.020 | D171: Устранение энтропиона или эктропиона
C172: A16.26.021 | D172: Коррекция блефароптоза
C173: A16.26.021.001 | D173: Устранение птоза
C174: A16.26.022 | D174: Коррекция блефарохалязиса
C175: A16.26.023 | D175: Устранение блефароспазма
C176: A16.26.028 | D176: Миотомия, тенотомия глазной мышцы
C177: A22.26.004 | D177: Лазерная корепраксия, дисцизия задней капсулы хрусталика
C178: A22.26.005 | D178: Лазерная иридэктомия
C179: A22.26.006 | D179: Лазергониотрабекулопунктура
C180: A22.26.007 | D180: Лазерный трабекулоспазис
C181: A22.26.009 | D181: Фокальная лазерная коагуляция глазного дна
C182: A22.26.010 | D182: Панретинальная лазерная коагуляция
C183: A22.26.019 | D183: Лазерная гониодесцеметопунктура
C184: A22.26.023 | D184: Лазерная трабекулопластика
B185: 11 | C185: проведение однотипных операций на парных органах (уровень 2): | F185: 0.47
C186: A16.03.033.002 | D186: Наложение наружных фиксирующих устройств с использованием компрессионно-дистракционного аппарата внешней фиксации
C187: A16.12.006 | D187: Разрез, иссечение и закрытие вен нижней конечности
C188: A16.12.006.002 | D188: Подапоневротическая перевязка анастомозов между поверхностными и глубокими венами голени
C189: A16.12.012 | D189: Перевязка и обнажение варикозных вен
C190: A16.26.075 | D190: Склеропластика
C191: A16.26.075.001 | D191: Склеропластика с использованием трансплантатов
C192: A16.26.079 | D192: Реваскуляризация заднего сегмента глаза
C193: A16.26.094 | D193: Имплантация интраокулярной линзы
C194: A16.26.147 | D194: Ретросклеропломбирование
B195: 12 | C195: проведение однотипных операций на парных органах (уровень 3) : | F195: 1.16
C196: A16.12.006.001 | D196: Удаление поверхностных вен нижней конечности
C197: A16.12.006.003 | D197: Диссекция перфорантных вен с использованием видеоэндоскопических технологий
C198: A16.26.093.002 | D198: Факоэмульсификация с имплантацией интраокулярной линзы
B199: 13 | C199: проведение однотипных операций на парных органах (уровень 4) : | F199: 2.07
C200: A16.03.022.002 | D200: Остеосинтез титановой пластиной
C201: A16.03.022.004 | D201: Интрамедуллярный стержневой остеосинтез
C202: A16.03.022.005 | D202: Остеосинтез с использованием биодеградируемых материалов
C203: A16.03.022.006 | D203: Интрамедуллярный блокируемый остеосинтез
... 55 more rows

Sheet Приложение № 4
B2: =MID(CELL("filename",A2),SEARCH("]",CELL("filename",A2))+1,31) -> Приложение № 4
B3: к Дополнительному соглашению № 5
B4: от 31.05.2024
B5: к Тарифному соглашению
B6: на оплату медицинской помощи
B7: по ОМС на территории Томской области на 2024 год
B8: от 05.02.2024
B10: Приложение № 40
B11: к Тарифному соглашению
B12: на оплату медицинской помощи
B13: по ОМС на территории Томской области на 2024 год
B14: от 05.02.2024
B16: Тарифы на оплату медицинской помощи по подушевому нормативу финансирования на прикрепившихся к медицинской организации лиц, включая оплату по всем видам и условиям предоставляемой медицинской помощи, с учетом показателей результативности деятельности медицинской организации (включая показатели объема медицинской помощи)
B18: Тарифы на оплату медицинской помощи по подушевому нормативу финансирования на прикрепившихся к медицинской организации лиц, включая оплату по всем видам и условиям предоставляемой медицинской помощи, с учетом показателей результативности деятельности медицинской организации (включая показатели объема медицинской помощи), с 01.06.2024
B20: Код МО | C20: Наименование МО | D20: Среднемесячное количество застрахованных лиц, прикрепленных к медицинской организации, на 01.05.2024 | E20: Базовый подушевой норматив на одно застрахованное прикрепившееся лицо (руб. в месяц) | F20: Коэффициент половозрастного состава | G20: Коэффициент уровня расходов медицинских организаций | H20: Коэффициент достижения целевых показателей уровня заработной платы медиицнских работников, предусмотренного "Дорожными картами" развития здравоохранения в ТО | I20: Коэффициент дифференциации на прикрепившихся к медицинской организации лиц с учетом наличия подразделений, расположенных в сельской местности, отдаленных территориях, поселках городского типа и малых городах с численностью населения до 50 тысяч человек и расходов на их содержание и на оплату труда персонала | J20: Диапазон численности прикрепленного населения к медицинским организациям, расположенных в сельской местности, отдаленных территориях, поселках городского типа и малых городах с численностью населения до 50 тысяч человек | K20: Коэффициент дифференциации по территориям оказания медицинской организации | L20: Месячный дифференцированный подушевой норматив финансирования МО на одно застрахованное прикрепившееся лицо, руб. в месяц | M20: Месячный дифференцированный подушевой норматив финансирования МО на медицинскую помощь, оказываемую в стационарных условиях, на одно застрахованное прикрепившееся лицо, руб. в месяц | N20: Месячный дифференцированный подушевой норматив финансирования МО на медицинскую помощь, оказываемую в условиях дневного стационара, на одно застрахованное прикрепившееся лицо, руб. в месяц | O20: Месячный дифференцированный подушевой норматив финансирования МО , на одно застрахованное прикрепившееся лицо, включая оплату медицинской помощи по всем видам и условиям руб. в месяц | P20: Месячный дифференцированный подушевой норматив финансирования поликлиники на одно застрахованное прикрепившееся лицо на выплаты за достижение целевых значений показателей результативности деятельности, руб. в месяц
B21: 61 | C21: ОГАУЗ "Александровская РБ" | D21: =VLOOKUP($B21,'[9]Неполный_уменьш. база (2)'!$A$5:$X$43,3,0) -> 0 | E21: 227.7 | F21: =VLOOKUP($B21,'[9]Неполный_уменьш. база (2)'!$A$5:$X$43,21,0) -> 1.075762421 | G21: 1 | H21: =VLOOKUP($B21,'[9]Неполный_уменьш. база (2)'!$A$5:$X$43,22,0) -> 1.58903 | I21: 1.113 | J21: до 20,0 тыс. человек | K21: 1.815 | L21: =ROUND(E21*F21*G21*H21*I21*K21,2) -> 786.29 | M21: 901.48 | N21: 102.26 | O21: =L21+M21+N21 -> 1790.03 | P21: =ROUND(L21*1/99,2) -> 7.94
B22: 63 | C22: ОГБУЗ "Бакчарская РБ" | D22: =VLOOKUP($B22,'[9]Неполный_уменьш. база (2)'!$A$5:$X$43,3,0) -> 0 | E22: 227.7 | F22: =VLOOKUP($B22,'[9]Неполный_уменьш. база (2)'!$A$5:$X$43,21,0) -> 1.083144735 | G22: 1 | H22: =VLOOKUP($B22,'[9]Неполный_уменьш. база (2)'!$A$5:$X$43,22,0) -> 1.83052 | I22: 1.113 | J22: до 20,0 тыс. человек | K22: 1.665 | L22: =ROUND(E22*F22*G22*H22*I22*K22,2) -> 836.63 | M22: 911.78 | N22: 99.59 | O22: =L22+M22+N22 -> 1848 | P22: =ROUND(L22*1/99,2) -> 8.45
B23: 65 | C23: ОГБУЗ "Верхнекетская РБ" | D23: =VLOOKUP($B23,'[9]Неполный_уменьш. база (2)'!$A$5:$X$43,3,0) -> 0 | E23: 227.7 | F23: =VLOOKUP($B23,'[9]Неполный_уменьш. база (2)'!$A$5:$X$43,21,0) -> 1.078676589 | G23: 1 | H23: =VLOOKUP($B23,'[9]Неполный_уменьш. база (2)'!$A$5:$X$43,22,0) -> 1.38711 | I23: 1.113 | J23: до 20,0 тыс. человек | K23: 1.795 | L23: 680.65 | M23: 704.73 | N23: 153.23 | O23: 1538.61 | P23: 6.88
B24: 69 | C24: ОГБУЗ "Каргасокская РБ" | D24: =VLOOKUP($B24,'[9]Неполный_уменьш. база (2)'!$A$5:$X$43,3,0) -> 0 | E24: 227.7 | F24: =VLOOKUP($B24,'[9]Неполный_уменьш. база (2)'!$A$5:$X$43,21,0) -> 1.084470427 | G24: 1 | H24: =VLOOKUP($B24,'[9]Неполный_уменьш. база (2)'!$A$5:$X$43,22,0) -> 1 | I24: 1.113 | J24: до 20,0 тыс. человек | K24: 1.831 | L24: 503.23 | M24: 533.08 | N24: 177.49 | O24: 1213.8 | P24: 5.08
B25: 75 | C25: ОГБУЗ "Молчановская РБ" | D25: =VLOOKUP($B25,'[9]Неполный_уменьш. база (2)'!$A$5:$X$43,3,0) -> 0 | E25: 227.7 | F25: =VLOOKUP($B25,'[9]Неполный_уменьш. база (2)'!$A$5:$X$43,21,0) -> 1.101793281 | G25: 1 | H25: =VLOOKUP($B25,'[9]Неполный_уменьш. база (2)'!$A$5:$X$43,22,0) -> 1.26781 | I25: 1.113 | J25: до 20,0 тыс. человек | K25: 1.637 | L25: 579.51 | M25: 649.57 | N25: 215.67 | O25: 1444.75 | P25: 5.85
B26: 115 | C26: ОГАУЗ "Стрежевская ГБ" | D26: =VLOOKUP($B26,'[9]Неполный_уменьш. база (2)'!$A$5:$X$43,3,0) -> 0 | E26: 227.7 | F26: =VLOOKUP($B26,'[9]Неполный_уменьш. база (2)'!$A$5:$X$43,21,0) -> 1.054471734 | G26: 1 | H26: =VLOOKUP($B26,'[9]Неполный_уменьш. база (2)'!$A$5:$X$43,22,0) -> 1.26004 | I26: 1.04 | J26: свыше 20,0 тыс. человек | K26: 1.765 | L26: 555.34 | M26: 822.19 | N26: 121.63 | O26: 1499.16 | P26: 5.61
B27: 81 | C27: ОГБУЗ "Тегульдетская РБ" | D27: =VLOOKUP($B27,'[9]Неполный_уменьш. база (2)'!$A$5:$X$43,3,0) -> 0 | E27: 227.7 | F27: =VLOOKUP($B27,'[9]Неполный_уменьш. база (2)'!$A$5:$X$43,21,0) -> 1.089904469 | G27: 1 | H27: =VLOOKUP($B27,'[9]Неполный_уменьш. база (2)'!$A$5:$X$43,22,0) -> 1.29827 | I27: 1.113 | J27: до 20,0 тыс. человек | K27: 1.644 | L27: =ROUND(E27*F27*G27*H27*I27*K27,2) -> 589.54 | M27: 872.37 | N27: 140.18 | O27: 1602.09 | P27: 5.95

Sheet Приложение № 5
A1: Оглавнление
B2: =MID(CELL("filename",A2),SEARCH("]",CELL("filename",A2))+1,31) -> Приложение № 5
B3: к Дополнительному соглашению № 5
B4: =_Оглавление_!A3 -> от 31.05.2024
B5: к Тарифному соглашению
B6: на оплату медицинской помощи
B7: по ОМС на территории Томской области на 2024 год
B8: от 05.02.2024
B10: Приложение № 41
B11: к Тарифному соглашению
B12: на оплату медицинской помощи
B13: по ОМС на территории Томской области на 2024 год
B14: от 05.02.2024
B16: Тарифы на оплату первого и второго этапа диспансеризации ветеранов боевых действий - участников специальной военной операции, с 01.05.2024
B19: Тарифы на оплату комплексного посещения в рамках первого этапа диспансеризации ветеранов боевых действий - участников специальной военной операции, с 01.05.2024
B21: № группы | C21: Наименование медицинской организации | D21: Тариф на комплексное посещение I этапа диспансеризации, (руб.)
D22: МУЖЧИНЫ Возраст (лет) | O22: ЖЕНЩИНЫ Возраст (лет)
D23: 21, 27, 33 | E23: 18, 24, 30 | F23: 39 | G23: 41,43,47,49,51, 53,57,59,61,63,77,79,81,83,85,87,89,91,93,95,97,99 | H23: 36 | I23: 55 | J23: 76,78,80,82,84,86,88,90,92,94,96,98 | K23: 65,67,69,71,73,75 | L23: 40,42,44,46,48,52,54,56,58,62,66,68,70,72,74 | M23: 50,60,64 | N23: 45 | O23: 21,27,33 | P23: 18,24,30 | Q23: 39 | R23: 41,43,47,49,53,55,59,61,77,79,81,83,85,87,89,91,93,95,97,99 | S23: 51,57,63 | T23: 36 | U23: 76,78,80,82,84,86,88,90,92,94,96,98 | V23: 65,67,69,71,73,75 | W23: 40,44,46,50,52,56,58,62,64,66,68,70,72,74 | X23: 42,48,54,60 | Y23: 45
B24: 1 | C24: ОГАУЗ "Шегарская РБ" | D24: 1661.46 | E24: 2073.25 | F24: 2248.68 | G24: 2543.87 | H24: 2660.47 | I24: 2821.39 | J24: 2955.67 | K24: 3383.55 | L24: 3795.35 | M24: 4072.9 | N24: 4612.8 | O24: 3040.31 | P24: 3452.12 | Q24: 3627.54 | R24: 3542.62 | S24: 3922.72 | T24: 4039.34 | U24: 3954.42 | V24: 4382.32 | W24: 5311 | X24: 5691.09 | Y24: 5714.14
C25: ОГАУЗ "Кожевниковская РБ" | D25: 1661.46 | E25: 2073.25 | F25: 2248.68 | G25: 2543.87 | H25: 2660.47 | I25: 2821.39 | J25: 2955.67 | K25: 3383.55 | L25: 3795.35 | M25: 4072.9 | N25: 4612.8 | O25: 3040.31 | P25: 3452.12 | Q25: 3627.54 | R25: 3542.62 | S25: 3922.72 | T25: 4039.34 | U25: 3954.42 | V25: 4382.32 | W25: 5311 | X25: 5691.09 | Y25: 5714.14
C26: ОГБУЗ "Первомайская РБ" | D26: 1661.46 | E26: 2073.25 | F26: 2248.68 | G26: 2543.87 | H26: 2660.47 | I26: 2821.39 | J26: 2955.67 | K26: 3383.55 | L26: 3795.35 | M26: 4072.9 | N26: 4612.8 | O26: 3040.31 | P26: 3452.12 | Q26: 3627.54 | R26: 3542.62 | S26: 3922.72 | T26: 4039.34 | U26: 3954.42 | V26: 4382.32 | W26: 5311 | X26: 5691.09 | Y26: 5714.14
C27: ОГБУЗ "Зырянская РБ" | D27: 1661.46 | E27: 2073.25 | F27: 2248.68 | G27: 2543.87 | H27: 2660.47 | I27: 2821.39 | J27: 2955.67 | K27: 3383.55 | L27: 3795.35 | M27: 4072.9 | N27: 4612.8 | O27: 3040.31 | P27: 3452.12 | Q27: 3627.54 | R27: 3542.62 | S27: 3922.72 | T27: 4039.34 | U27: 3954.42 | V27: 4382.32 | W27: 5311 | X27: 5691.09 | Y27: 5714.14
B28: 2 | C28: ОГБУЗ "Медико-санитарная часть №2" | D28: 1486.31 | E28: 1854.71 | F28: 2011.63 | G28: 2275.7 | H28: 2380.02 | I28: 2523.99 | J28: 2644.09 | K28: 3026.88 | L28: 3395.27 | M28: 3643.56 | N28: 4126.57 | O28: 2719.83 | P28: 3088.2 | Q28: 3245.15 | R28: 3169.19 | S28: 3509.22 | T28: 3613.52 | U28: 3537.57 | V28: 3920.37 | W28: 4751.14 | X28: 5091.18 | Y28: 5111.79
B29: 3 | C29: ОГБУЗ "Асиновская РБ" | D29: 1661.46 | E29: 2073.25 | F29: 2248.68 | G29: 2543.87 | H29: 2660.47 | I29: 2821.39 | J29: 2955.67 | K29: 3383.55 | L29: 3795.35 | M29: 4072.9 | N29: 4612.8 | O29: 3040.31 | P29: 3452.12 | Q29: 3627.54 | R29: 3542.62 | S29: 3922.72 | T29: 4039.34 | U29: 3954.42 | V29: 4382.32 | W29: 5311 | X29: 5691.09 | Y29: 5714.14
B30: 4 | C30: ОГАУЗ "Кривошеинская РБ" | D30: 1988.79 | E30: 2481.7 | F30: 2691.69 | G30: 3045.03 | H30: 3184.6 | I30: 3377.24 | J30: 3537.95 | K30: 4050.16 | L30: 4543.07 | M30: 4875.28 | N30: 5521.58 | O30: 3639.29 | P30: 4132.2 | Q30: 4342.18 | R30: 4240.55 | S30: 4695.53 | T30: 4835.1 | U30: 4733.47 | V30: 5245.67 | W30: 6357.31 | X30: 6812.28 | Y30: 6839.88
C31: ОГБУЗ "Молчановская РБ" | D31: 1988.79 | E31: 2481.7 | F31: 2691.69 | G31: 3045.03 | H31: 3184.6 | I31: 3377.24 | J31: 3537.95 | K31: 4050.16 | L31: 4543.07 | M31: 4875.28 | N31: 5521.58 | O31: 3639.29 | P31: 4132.2 | Q31: 4342.18 | R31: 4240.55 | S31: 4695.53 | T31: 4835.1 | U31: 4733.47 | V31: 5245.67 | W31: 6357.31 | X31: 6812.28 | Y31: 6839.88
C32: ОГБУЗ "Тегульдетская РБ" | D32: 1988.79 | E32: 2481.7 | F32: 2691.69 | G32: 3045.03 | H32: 3184.6 | I32: 3377.24 | J32: 3537.95 | K32: 4050.16 | L32: 4543.07 | M32: 4875.28 | N32: 5521.58 | O32: 3639.29 | P32: 4132.2 | Q32: 4342.18 | R32: 4240.55 | S32: 4695.53 | T32: 4835.1 | U32: 4733.47 | V32: 5245.67 | W32: 6357.31 | X32: 6812.28 | Y32: 6839.88
C33: ОГБУЗ "Бакчарская РБ" | D33: 1988.79 | E33: 2481.7 | F33: 2691.69 | G33: 3045.03 | H33: 3184.6 | I33: 3377.24 | J33: 3537.95 | K33: 4050.16 | L33: 4543.07 | M33: 4875.28 | N33: 5521.58 | O33: 3639.29 | P33: 4132.2 | Q33: 4342.18 | R33: 4240.55 | S33: 4695.53 | T33: 4835.1 | U33: 4733.47 | V33: 5245.67 | W33: 6357.31 | X33: 6812.28 | Y33: 6839.88
B34: 5 | C34: ОГАУЗ "Колпашевская РБ" | D34: 2044.34 | E34: 2551.03 | F34: 2766.88 | G34: 3130.1 | H34: 3273.56 | I34: 3471.59 | J34: 3636.8 | K34: 4163.3 | L34: 4670 | M34: 5011.5 | N34: 5675.84 | O34: 3740.95 | P34: 4247.65 | Q34: 4463.49 | R34: 4359.02 | S34: 4826.71 | T34: 4970.18 | U34: 4865.71 | V34: 5392.23 | W34: 6534.92 | X34: 7002.62 | Y34: 7030.97
C35: ОГБУЗ "Верхнекетская РБ" | D35: 2044.34 | E35: 2551.03 | F35: 2766.88 | G35: 3130.1 | H35: 3273.56 | I35: 3471.59 | J35: 3636.8 | K35: 4163.3 | L35: 4670 | M35: 5011.5 | N35: 5675.84 | O35: 3740.95 | P35: 4247.65 | Q35: 4463.49 | R35: 4359.02 | S35: 4826.71 | T35: 4970.18 | U35: 4865.71 | V35: 5392.23 | W35: 6534.92 | X35: 7002.62 | Y35: 7030.97
B36: 6 | C36: ОГБУЗ "Чаинская РБ" | D36: 2128.88 | E36: 2656.53 | F36: 2881.3 | G36: 3259.53 | H36: 3408.94 | I36: 3615.16 | J36: 3787.19 | K36: 4335.47 | L36: 4863.11 | M36: 5218.74 | N36: 5910.57 | O36: 3895.67 | P36: 4423.32 | Q36: 4648.08 | R36: 4539.29 | S36: 5026.32 | T36: 5175.72 | U36: 5066.95 | V36: 5615.23 | W36: 6805.18 | X36: 7292.21 | Y36: 7321.73
C37: ОГБУЗ "Парабельская РБ" | D37: 2128.88 | E37: 2656.53 | F37: 2881.3 | G37: 3259.53 | H37: 3408.94 | I37: 3615.16 | J37: 3787.19 | K37: 4335.47 | L37: 4863.11 | M37: 5218.74 | N37: 5910.57 | O37: 3895.67 | P37: 4423.32 | Q37: 4648.08 | R37: 4539.29 | S37: 5026.32 | T37: 5175.72 | U37: 5066.95 | V37: 5615.23 | W37: 6805.18 | X37: 7292.21 | Y37: 7321.73
C38: ОГАУЗ "Стрежевская ГБ" | D38: 2128.88 | E38: 2656.53 | F38: 2881.3 | G38: 3259.53 | H38: 3408.94 | I38: 3615.16 | J38: 3787.19 | K38: 4335.47 | L38: 4863.11 | M38: 5218.74 | N38: 5910.57 | O38: 3895.67 | P38: 4423.32 | Q38: 4648.08 | R38: 4539.29 | S38: 5026.32 | T38: 5175.72 | U38: 5066.95 | V38: 5615.23 | W38: 6805.18 | X38: 7292.21 | Y38: 7321.73
C39: ОГБУЗ "Каргасокская РБ" | D39: 2128.88 | E39: 2656.53 | F39: 2881.3 | G39: 3259.53 | H39: 3408.94 | I39: 3615.16 | J39: 3787.19 | K39: 4335.47 | L39: 4863.11 | M39: 5218.74 | N39: 5910.57 | O39: 3895.67 | P39: 4423.32 | Q39: 4648.08 | R39: 4539.29 | S39: 5026.32 | T39: 5175.72 | U39: 5066.95 | V39: 5615.23 | W39: 6805.18 | X39: 7292.21 | Y39: 7321.73
C40: ОГАУЗ "Александровская РБ" | D40: 2128.88 | E40: 2656.53 | F40: 2881.3 | G40: 3259.53 | H40: 3408.94 | I40: 3615.16 | J40: 3787.19 | K40: 4335.47 | L40: 4863.11 | M40: 5218.74 | N40: 5910.57 | O40: 3895.67 | P40: 4423.32 | Q40: 4648.08 | R40: 4539.29 | S40: 5026.32 | T40: 5175.72 | U40: 5066.95 | V40: 5615.23 | W40: 6805.18 | X40: 7292.21 | Y40: 7321.73
B43: Тарифы на оплату комплексного посещения в выходной день в рамках первого этапа диспансеризации ветеранов боевых действий - участников специальной военной операции, с 01.05.2024
B45: № группы | C45: Наименование медицинской организации | D45: Тариф на комплексное посещение I этапа диспансеризации, (руб.)
D46: МУЖЧИНЫ Возраст (лет) | O46: ЖЕНЩИНЫ Возраст (лет)
D47: 21, 27, 33 | E47: 18, 24, 30 | F47: 39 | G47: 41,43,47,49,51, 53,57,59,61,63,77,79,81,83,85,87,89,91,93,95,97,99 | H47: 36 | I47: 55 | J47: 76,78,80,82,84,86,88,90,92,94,96,98 | K47: 65,67,69,71,73,75 | L47: 40,42,44,46,48,52,54,56,58,62,66,68,70,72,74 | M47: 50,60,64 | N47: 45 | O47: 21,27,33 | P47: 18,24,30 | Q47: 39 | R47: 41,43,47,49,53,55,59,61,77,79,81,83,85,87,89,91,93,95,97,99 | S47: 51,57,63 | T47: 36 | U47: 76,78,80,82,84,86,88,90,92,94,96,98 | V47: 65,67,69,71,73,75 | W47: 40,44,46,50,52,56,58,62,64,66,68,70,72,74 | X47: 42,48,54,60 | Y47: 45
B48: 1 | C48: ОГАУЗ "Шегарская РБ" | D48: 2210.93 | E48: 2654.6 | F48: 2843.58 | G48: 3161.61 | H48: 3287.24 | I48: 3460.63 | J48: 3605.29 | K48: 4066.27 | L48: 4509.94 | M48: 4808.96 | N48: 5390.64 | O48: 3696.48 | P48: 4140.14 | Q48: 4329.14 | R48: 4237.65 | S48: 4647.17 | T48: 4772.8 | U48: 4681.31 | V48: 5142.31 | W48: 6142.84 | X48: 6552.36 | Y48: 6577.18
C49: ОГАУЗ "Кожевниковская РБ" | D49: 2210.93 | E49: 2654.6 | F49: 2843.58 | G49: 3161.61 | H49: 3287.24 | I49: 3460.63 | J49: 3605.29 | K49: 4066.27 | L49: 4509.94 | M49: 4808.96 | N49: 5390.64 | O49: 3696.48 | P49: 4140.14 | Q49: 4329.14 | R49: 4237.65 | S49: 4647.17 | T49: 4772.8 | U49: 4681.31 | V49: 5142.31 | W49: 6142.84 | X49: 6552.36 | Y49: 6577.18
C50: ОГБУЗ "Первомайская РБ" | D50: 2210.93 | E50: 2654.6 | F50: 2843.58 | G50: 3161.61 | H50: 3287.24 | I50: 3460.63 | J50: 3605.29 | K50: 4066.27 | L50: 4509.94 | M50: 4808.96 | N50: 5390.64 | O50: 3696.48 | P50: 4140.14 | Q50: 4329.14 | R50: 4237.65 | S50: 4647.17 | T50: 4772.8 | U50: 4681.31 | V50: 5142.31 | W50: 6142.84 | X50: 6552.36 | Y50: 6577.18
C51: ОГБУЗ "Зырянская РБ" | D51: 2210.93 | E51: 2654.6 | F51: 2843.58 | G51: 3161.61 | H51: 3287.24 | I51: 3460.63 | J51: 3605.29 | K51: 4066.27 | L51: 4509.94 | M51: 4808.96 | N51: 5390.64 | O51: 3696.48 | P51: 4140.14 | Q51: 4329.14 | R51: 4237.65 | S51: 4647.17 | T51: 4772.8 | U51: 4681.31 | V51: 5142.31 | W51: 6142.84 | X51: 6552.36 | Y51: 6577.18
B52: 2 | C52: ОГБУЗ "Медико-санитарная часть №2" | D52: 1968.93 | E52: 2365.82 | F52: 2534.89 | G52: 2819.41 | H52: 2931.79 | I52: 3086.89 | J52: 3216.3 | K52: 3628.71 | L52: 4025.6 | M52: 4293.09 | N52: 4813.47 | O52: 3297.89 | P52: 3694.79 | Q52: 3863.85 | R52: 3782.01 | S52: 4148.35 | T52: 4260.75 | U52: 4178.91 | V52: 4591.32 | W52: 5486.4 | X52: 5852.73 | Y52: 5874.94
B53: 3 | C53: ОГБУЗ "Асиновская РБ" | D53: 2210.93 | E53: 2654.6 | F53: 2843.58 | G53: 3161.61 | H53: 3287.24 | I53: 3460.63 | J53: 3605.29 | K53: 4066.27 | L53: 4509.94 | M53: 4808.96 | N53: 5390.64 | O53: 3696.48 | P53: 4140.14 | Q53: 4329.14 | R53: 4237.65 | S53: 4647.17 | T53: 4772.8 | U53: 4681.31 | V53: 5142.31 | W53: 6142.84 | X53: 6552.36 | Y53: 6577.18
B54: 4 | C54: ОГАУЗ "Кривошеинская РБ" | D54: 2663.22 | E54: 3194.27 | F54: 3420.5 | G54: 3801.19 | H54: 3951.57 | I54: 4159.1 | J54: 4332.24 | K54: 4884.08 | L54: 5415.14 | M54: 5773.06 | N54: 6469.37 | O54: 4441.43 | P54: 4972.48 | Q54: 5198.71 | R54: 5089.22 | S54: 5579.39 | T54: 5729.76 | U54: 5620.27 | V54: 6172.11 | W54: 7369.76 | X54: 7859.94 | Y54: 7889.65
C55: ОГБУЗ "Молчановская РБ" | D55: 2663.22 | E55: 3194.27 | F55: 3420.5 | G55: 3801.19 | H55: 3951.57 | I55: 4159.1 | J55: 4332.24 | K55: 4884.08 | L55: 5415.14 | M55: 5773.06 | N55: 6469.37 | O55: 4441.43 | P55: 4972.48 | Q55: 5198.71 | R55: 5089.22 | S55: 5579.39 | T55: 5729.76 | U55: 5620.27 | V55: 6172.11 | W55: 7369.76 | X55: 7859.94 | Y55: 7889.65
C56: ОГБУЗ "Тегульдетская РБ" | D56: 2663.22 | E56: 3194.27 | F56: 3420.5 | G56: 3801.19 | H56: 3951.57 | I56: 4159.1 | J56: 4332.24 | K56: 4884.08 | L56: 5415.14 | M56: 5773.06 | N56: 6469.37 | O56: 4441.43 | P56: 4972.48 | Q56: 5198.71 | R56: 5089.22 | S56: 5579.39 | T56: 5729.76 | U56: 5620.27 | V56: 6172.11 | W56: 7369.76 | X56: 7859.94 | Y56: 7889.65
C57: ОГБУЗ "Бакчарская РБ" | D57: 2663.22 | E57: 3194.27 | F57: 3420.5 | G57: 3801.19 | H57: 3951.57 | I57: 4159.1 | J57: 4332.24 | K57: 4884.08 | L57: 5415.14 | M57: 5773.06 | N57: 6469.37 | O57: 4441.43 | P57: 4972.48 | Q57: 5198.71 | R57: 5089.22 | S57: 5579.39 | T57: 5729.76 | U57: 5620.27 | V57: 6172.11 | W57: 7369.76 | X57: 7859.94 | Y57: 7889.65
B58: 5 | C58: ОГАУЗ "Колпашевская РБ" | D58: 2739.98 | E58: 3285.86 | F58: 3518.41 | G58: 3909.73 | H58: 4064.29 | I58: 4277.66 | J58: 4455.63 | K58: 5022.9 | L58: 5568.79 | M58: 5936.7 | N58: 6652.46 | O58: 4567.86 | P58: 5113.76 | Q58: 5346.3 | R58: 5233.75 | S58: 5737.64 | T58: 5892.2 | U58: 5779.65 | V58: 6346.9 | W58: 7578.01 | X58: 8081.9 | Y58: 8112.44
C59: ОГБУЗ "Верхнекетская РБ" | D59: 2739.98 | E59: 3285.86 | F59: 3518.41 | G59: 3909.73 | H59: 4064.29 | I59: 4277.66 | J59: 4455.63 | K59: 5022.9 | L59: 5568.79 | M59: 5936.7 | N59: 6652.46 | O59: 4567.86 | P59: 5113.76 | Q59: 5346.3 | R59: 5233.75 | S59: 5737.64 | T59: 5892.2 | U59: 5779.65 | V59: 6346.9 | W59: 7578.01 | X59: 8081.9 | Y59: 8112.44
B60: 6 | C60: ОГБУЗ "Чаинская РБ" | D60: 2856.78 | E60: 3425.25 | F60: 3667.42 | G60: 4074.93 | H60: 4235.88 | I60: 4458.08 | J60: 4643.4 | K60: 5234.1 | L60: 5802.57 | M60: 6185.72 | N60: 6931.08 | O60: 4760.28 | P60: 5328.75 | Q60: 5570.91 | R60: 5453.71 | S60: 5978.43 | T60: 6139.37 | U60: 6022.17 | V60: 6612.88 | W60: 7894.91 | X60: 8419.62 | Y60: 8451.43
C61: ОГБУЗ "Парабельская РБ" | D61: 2856.78 | E61: 3425.25 | F61: 3667.42 | G61: 4074.93 | H61: 4235.88 | I61: 4458.08 | J61: 4643.4 | K61: 5234.1 | L61: 5802.57 | M61: 6185.72 | N61: 6931.08 | O61: 4760.28 | P61: 5328.75 | Q61: 5570.91 | R61: 5453.71 | S61: 5978.43 | T61: 6139.37 | U61: 6022.17 | V61: 6612.88 | W61: 7894.91 | X61: 8419.62 | Y61: 8451.43
C62: ОГАУЗ "Стрежевская ГБ" | D62: 2856.78 | E62: 3425.25 | F62: 3667.42 | G62: 4074.93 | H62: 4235.88 | I62: 4458.08 | J62: 4643.4 | K62: 5234.1 | L62: 5802.57 | M62: 6185.72 | N62: 6931.08 | O62: 4760.28 | P62: 5328.75 | Q62: 5570.91 | R62: 5453.71 | S62: 5978.43 | T62: 6139.37 | U62: 6022.17 | V62: 6612.88 | W62: 7894.91 | X62: 8419.62 | Y62: 8451.43
C63: ОГБУЗ "Каргасокская РБ" | D63: 2856.78 | E63: 3425.25 | F63: 3667.42 | G63: 4074.93 | H63: 4235.88 | I63: 4458.08 | J63: 4643.4 | K63: 5234.1 | L63: 5802.57 | M63: 6185.72 | N63: 6931.08 | O63: 4760.28 | P63: 5328.75 | Q63: 5570.91 | R63: 5453.71 | S63: 5978.43 | T63: 6139.37 | U63: 6022.17 | V63: 6612.88 | W63: 7894.91 | X63: 8419.62 | Y63: 8451.43
C64: ОГАУЗ "Александровская РБ" | D64: 2856.78 | E64: 3425.25 | F64: 3667.42 | G64: 4074.93 | H64: 4235.88 | I64: 4458.08 | J64: 4643.4 | K64: 5234.1 | L64: 5802.57 | M64: 6185.72 | N64: 6931.08 | O64: 4760.28 | P64: 5328.75 | Q64: 5570.91 | R64: 5453.71 | S64: 5978.43 | T64: 6139.37 | U64: 6022.17 | V64: 6612.88 | W64: 7894.91 | X64: 8419.62 | Y64: 8451.43
B66: Тарифы на оплату медицинских услуг II этапа диспансеризации ветеранов боевых действий - участников специальной военной операции, с 01.05.2024
B71: Код услуги согласно отраслевому классификатору | C71: Наименование услуги | D71: Стоимость (без учета коэффициента дифференциации), руб. | E71: ОГБУЗ "Зырянская РБ" | F71: ОГАУЗ "Кожевниковская РБ" | G71: ОГБУЗ "Первомайская РБ" | H71: ОГАУЗ "Шегарская РБ" | I71: ОГБУЗ "МСЧ № 2" | J71: ОГБУЗ "Асиновская РБ" | K71: ОГАУЗ "Кривошеинская РБ" | L71: ОГБУЗ "Молчановская РБ" | M71: ОГБУЗ "Тегульдетская РБ" | N71: ОГБУЗ "Бакчарская РБ" | O71: ОГАУЗ "Колпашевская РБ" | P71: ОГБУЗ "Верхнекетская РБ" | Q71: ОГАУЗ "Стрежевская ГБ" | R71: ОГБУЗ "Чаинская РБ" | S71: ОГБУЗ "Парабельская РБ" | T71: ОГБУЗ "Каргасокская РБ" | U71: ОГАУЗ "Александровская РБ"
D73: коэффициент дифференциации | E73: 1.26 | F73: 1.272 | G73: 1.272 | H73: 1.242 | I73: 1.274 | J73: 1.27 | K73: 1.63 | L73: 1.637 | M73: 1.644 | N73: 1.665 | O73: 1.793 | P73: 1.795 | Q73: 1.765 | R73: 1.777 | S73: 1.794 | T73: 1.831 | U73: 1.815
B74: А04.12.005.003 | C74: Дуплексное сканирование брахицефальных артерий | D74: 541.2 | E74: 681.91 | F74: 688.41 | G74: 688.41 | H74: 672.17 | I74: 689.49 | J74: 687.32 | K74: 882.16 | L74: 885.94 | M74: 889.73 | N74: 901.1 | O74: 970.37 | P74: 971.45 | Q74: 955.22 | R74: 961.71 | S74: 970.91 | T74: 990.94 | U74: 982.28
B75: А03.18.001 | C75: Колоноскопия | D75: 1362.68 | E75: 1716.98 | F75: 1733.33 | G75: 1733.33 | H75: 1692.45 | I75: 1736.05 | J75: 1730.6 | K75: 2221.17 | L75: 2230.71 | M75: 2240.25 | N75: 2268.86 | O75: 2443.29 | P75: 2446.01 | Q75: 2405.13 | R75: 2421.48 | S75: 2444.65 | T75: 2495.07 | U75: 2473.26
B76: A03.18.001 Н | C76: Колоноскопия (диагностическая) под наркозом | D76: 3256.49 | E76: 4103.18 | F76: 4142.26 | G76: 4142.26 | H76: 4044.56 | I76: 4148.77 | J76: 4135.74 | K76: 5308.08 | L76: 5330.87 | M76: 5353.67 | N76: 5422.06 | O76: 5838.89 | P76: 5845.4 | Q76: 5747.7 | R76: 5786.78 | S76: 5842.14 | T76: 5962.63 | U76: 5910.53
B77: A03.19.002 | C77: Ректороманоскопия | D77: 1116.04 | E77: 1406.21 | F77: 1419.6 | G77: 1419.6 | H77: 1386.12 | I77: 1421.83 | J77: 1417.37 | K77: 1819.15 | L77: 1826.96 | M77: 1834.77 | N77: 1858.21 | O77: 2001.06 | P77: 2003.29 | Q77: 1969.81 | R77: 1983.2 | S77: 2002.18 | T77: 2043.47 | U77: 2025.61
B78: A03.16.001 | C78: Эзофагогастродуоденоскопия | D78: 911.26 | E78: 1148.19 | F78: 1159.12 | G78: 1159.12 | H78: 1131.78 | I78: 1160.95 | J78: 1157.3 | K78: 1485.35 | L78: 1491.73 | M78: 1498.11 | N78: 1517.25 | O78: 1633.89 | P78: 1635.71 | Q78: 1608.37 | R78: 1619.31 | S78: 1634.8 | T78: 1668.52 | U78: 1653.94
B79: A03.16.001 Н | C79: Эзофагогастродуоденоскопия (с применением анестезиологического пособия) | D79: 3256.49 | E79: 4103.18 | F79: 4142.26 | G79: 4142.26 | H79: 4044.56 | I79: 4148.77 | J79: 4135.74 | K79: 5308.08 | L79: 5330.87 | M79: 5353.67 | N79: 5422.06 | O79: 5838.89 | P79: 5845.4 | Q79: 5747.7 | R79: 5786.78 | S79: 5842.14 | T79: 5962.63 | U79: 5910.53
B80: A06.09.007 | C80: Рентгенография легких | D80: 173.32 | E80: 218.38 | F80: 220.46 | G80: 220.46 | H80: 215.26 | I80: 220.81 | J80: 220.12 | K80: 282.51 | L80: 283.72 | M80: 284.94 | N80: 288.58 | O80: 310.76 | P80: 311.11 | Q80: 305.91 | R80: 307.99 | S80: 310.94 | T80: 317.35 | U80: 314.58
B81: A06.09.008 | C81: Томография легких | D81: 274.42 | E81: 345.77 | F81: 349.06 | G81: 349.06 | H81: 340.83 | I81: 349.61 | J81: 348.51 | K81: 447.3 | L81: 449.23 | M81: 451.15 | N81: 456.91 | O81: 492.04 | P81: 492.58 | Q81: 484.35 | R81: 487.64 | S81: 492.31 | T81: 502.46 | U81: 498.07
B82: А12.09.001 | C82: Исследование неспровоцированных дыхательных объемов и потоков | D82: 329.55 | E82: 415.23 | F82: 419.19 | G82: 419.19 | H82: 409.3 | I82: 419.85 | J82: 418.53 | K82: 537.17 | L82: 539.47 | M82: 541.78 | N82: 548.7 | O82: 590.88 | P82: 591.54 | Q82: 581.66 | R82: 585.61 | S82: 591.21 | T82: 603.41 | U82: 598.13
B83: А12.09.002.002 | C83: Исследование дыхательных объемов при провокации физической нагрузкой | D83: 549.83 | E83: 692.79 | F83: 699.38 | G83: 699.38 | H83: 682.89 | I83: 700.48 | J83: 698.28 | K83: 896.22 | L83: 900.07 | M83: 903.92 | N83: 915.47 | O83: 985.85 | P83: 986.94 | Q83: 970.45 | R83: 977.05 | S83: 986.4 | T83: 1006.74 | U83: 997.94
B84: A12.09.002.004 | C84: Исследование дыхательных объемов при медикаментозной провокации | D84: 431.29 | E84: 543.43 | F84: 548.6 | G84: 548.6 | H84: 535.66 | I84: 549.46 | J84: 547.74 | K84: 703 | L84: 706.02 | M84: 709.04 | N84: 718.1 | O84: 773.3 | P84: 774.17 | Q84: 761.23 | R84: 766.4 | S84: 773.73 | T84: 789.69 | U84: 782.79
B85: A09.05.083 | C85: Исследование уровня гликированного гемоглобина в крови | D85: 246 | E85: 309.96 | F85: 312.91 | G85: 312.91 | H85: 305.53 | I85: 313.4 | J85: 312.42 | K85: 400.98 | L85: 402.7 | M85: 404.42 | N85: 409.59 | O85: 441.08 | P85: 441.57 | Q85: 434.19 | R85: 437.14 | S85: 441.32 | T85: 450.43 | U85: 446.49
B86: A09.05.083.001 | C86: Исследование уровня гликированного гемоглобина в крови (без забора материала) | D86: 280.68 | E86: 353.66 | F86: 357.02 | G86: 357.02 | H86: 348.6 | I86: 357.59 | J86: 356.46 | K86: 457.51 | L86: 459.47 | M86: 461.44 | N86: 467.33 | O86: 503.26 | P86: 503.82 | Q86: 495.4 | R86: 498.77 | S86: 503.54 | T86: 513.93 | U86: 509.43
B87: А 03.016.03.001 | C87: Общий (клинический) анализ крови на гематологическом анализаторе | D87: 176.71 | E87: 222.65 | F87: 224.78 | G87: 224.78 | H87: 219.47 | I87: 225.13 | J87: 224.42 | K87: 288.04 | L87: 289.27 | M87: 290.51 | N87: 294.22 | O87: 316.84 | P87: 317.19 | Q87: 311.89 | R87: 314.01 | S87: 317.02 | T87: 323.56 | U87: 320.73
B88: В03.016.006 | C88: Общий (клинический) анализ мочи | D88: 163.68 | E88: 206.24 | F88: 208.2 | G88: 208.2 | H88: 203.29 | I88: 208.53 | J88: 207.87 | K88: 266.8 | L88: 267.94 | M88: 269.09 | N88: 272.53 | O88: 293.48 | P88: 293.81 | Q88: 288.9 | R88: 290.86 | S88: 293.64 | T88: 299.7 | U88: 297.08
B89: В03.016.004 | C89: Анализ крови биохимический общетерапевтический | D89: 323.77 | E89: 407.95 | F89: 411.84 | G89: 411.84 | H89: 402.12 | I89: 412.48 | J89: 411.19 | K89: 527.75 | L89: 530.01 | M89: 532.28 | N89: 539.08 | O89: 580.52 | P89: 581.17 | Q89: 571.45 | R89: 575.34 | S89: 580.84 | T89: 592.82 | U89: 587.64
B90: А09.19.001 | C90: Исследование кала на скрытую кровь | D90: 32.72 | E90: 41.23 | F90: 41.62 | G90: 41.62 | H90: 40.64 | I90: 41.69 | J90: 41.55 | K90: 53.33 | L90: 53.56 | M90: 53.79 | N90: 54.48 | O90: 58.67 | P90: 58.73 | Q90: 57.75 | R90: 58.14 | S90: 58.7 | T90: 59.91 | U90: 59.39
B91: А09.20.003 | C91: Определение Д-Димера | D91: 115.82 | E91: 145.93 | F91: 147.32 | G91: 147.32 | H91: 143.85 | I91: 147.55 | J91: 147.09 | K91: 188.79 | L91: 189.6 | M91: 190.41 | N91: 192.84 | O91: 207.67 | P91: 207.9 | Q91: 204.42 | R91: 205.81 | S91: 207.78 | T91: 212.07 | U91: 210.21
B92: А11.12.009 | C92: Взятие крови из периферической вены | D92: 47.21 | E92: 59.48 | F92: 60.05 | G92: 60.05 | H92: 58.63 | I92: 60.15 | J92: 59.96 | K92: 76.95 | L92: 77.28 | M92: 77.61 | N92: 78.6 | O92: 84.65 | P92: 84.74 | Q92: 83.33 | R92: 83.89 | S92: 84.69 | T92: 86.44 | U92: 85.69
B93: В01.050.001 | C93: Прием (осмотр-консультация) первичный врача-травматолога | D93: 212.84 | E93: 268.18 | F93: 270.73 | G93: 270.73 | H93: 264.35 | I93: 271.16 | J93: 270.31 | K93: 346.93 | L93: 348.42 | M93: 349.91 | N93: 354.38 | O93: 381.62 | P93: 382.05 | Q93: 375.66 | R93: 378.22 | S93: 381.83 | T93: 389.71 | U93: 386.3
B94: В01.057.001 | C94: Прием (осмотр-консультация) первичный врача-хирурга | D94: 206 | E94: 259.56 | F94: 262.03 | G94: 262.03 | H94: 255.85 | I94: 262.44 | J94: 261.62 | K94: 335.78 | L94: 337.22 | M94: 338.66 | N94: 342.99 | O94: 369.36 | P94: 369.77 | Q94: 363.59 | R94: 366.06 | S94: 369.56 | T94: 377.19 | U94: 373.89
B95: В01.028.001.006 | C95: Прием (осмотр, консультация) врача-оториноларинголога с использованием видеоэндоскопической техники | D95: 1481.43 | E95: 1866.6 | F95: 1884.38 | G95: 1884.38 | H95: 1839.94 | I95: 1887.34 | J95: 1881.42 | K95: 2414.73 | L95: 2425.1 | M95: 2435.47 | N95: 2466.58 | O95: 2656.2 | P95: 2659.17 | Q95: 2614.72 | R95: 2632.5 | S95: 2657.69 | T95: 2712.5 | U95: 2688.8
B96: В01.023.001 | C96: Прием первичный осмотр-консультация невролога | D96: 332.06 | E96: 418.4 | F96: 422.38 | G96: 422.38 | H96: 412.42 | I96: 423.04 | J96: 421.72 | K96: 541.26 | L96: 543.58 | M96: 545.91 | N96: 552.88 | O96: 595.38 | P96: 596.05 | Q96: 586.09 | R96: 590.07 | S96: 595.72 | T96: 608 | U96: 602.69
B97: В01.029.001 | C97: Прием (осмотр, консультация) врача-офтальмолога первичный | D97: 179.15 | E97: 225.73 | F97: 227.88 | G97: 227.88 | H97: 222.5 | I97: 228.24 | J97: 227.52 | K97: 292.01 | L97: 293.27 | M97: 294.52 | N97: 298.28 | O97: 321.22 | P97: 321.57 | Q97: 316.2 | R97: 318.35 | S97: 321.4 | T97: 328.02 | U97: 325.16
B98: А02.26.004 | C98: Проверка остроты зрения по таблице | D98: 21.49 | E98: 27.08 | F98: 27.34 | G98: 27.34 | H98: 26.69 | I98: 27.38 | J98: 27.29 | K98: 35.03 | L98: 35.18 | M98: 35.33 | N98: 35.78 | O98: 38.53 | P98: 38.57 | Q98: 37.93 | R98: 38.19 | S98: 38.55 | T98: 39.35 | U98: 39
B99: А03.26.001 | C99: Осмотр переднего отрезка глаза на щелевой лампе (биомикроскопия) | D99: 63.4 | E99: 79.88 | F99: 80.64 | G99: 80.64 | H99: 78.74 | I99: 80.77 | J99: 80.52 | K99: 103.34 | L99: 103.79 | M99: 104.23 | N99: 105.56 | O99: 113.68 | P99: 113.8 | Q99: 111.9 | R99: 112.66 | S99: 113.74 | T99: 116.09 | U99: 115.07
B100: А02.26.020 | C100: Осмотр глазного дна с узкими зрачком | D100: 12.9 | E100: 16.25 | F100: 16.41 | G100: 16.41 | H100: 16.02 | I100: 16.43 | J100: 16.38 | K100: 21.03 | L100: 21.12 | M100: 21.21 | N100: 21.48 | O100: 23.13 | P100: 23.16 | Q100: 22.77 | R100: 22.92 | S100: 23.14 | T100: 23.62 | U100: 23.41
B101: B01.008.001 | C101: Прием (осмотр, консультация) врача-дерматовенеролога | D101: 243.58 | E101: 306.91 | F101: 309.83 | G101: 309.83 | H101: 302.53 | I101: 310.32 | J101: 309.35 | K101: 397.04 | L101: 398.74 | M101: 400.45 | N101: 405.56 | O101: 436.74 | P101: 437.23 | Q101: 429.92 | R101: 432.84 | S101: 436.98 | T101: 445.99 | U101: 442.1
B102: А04.14.001 | C102: Ультразвуковое исследование печени | D102: 144.56 | E102: 182.15 | F102: 183.88 | G102: 183.88 | H102: 179.54 | I102: 184.17 | J102: 183.59 | K102: 235.63 | L102: 236.64 | M102: 237.66 | N102: 240.69 | O102: 259.2 | P102: 259.49 | Q102: 255.15 | R102: 256.88 | S102: 259.34 | T102: 264.69 | U102: 262.38
B103: А04.15.001 | C103: Ультразвуковое исследование поджелудочной железы | D103: 169.07 | E103: 213.03 | F103: 215.06 | G103: 215.06 | H103: 209.98 | I103: 215.4 | J103: 214.72 | K103: 275.58 | L103: 276.77 | M103: 277.95 | N103: 281.5 | O103: 303.14 | P103: 303.48 | Q103: 298.41 | R103: 300.44 | S103: 303.31 | T103: 309.57 | U103: 306.86
B104: А04.14.002 | C104: Ультразвуковое исследование желчного пузыря и протоков | D104: 144.56 | E104: 182.15 | F104: 183.88 | G104: 183.88 | H104: 179.54 | I104: 184.17 | J104: 183.59 | K104: 235.63 | L104: 236.64 | M104: 237.66 | N104: 240.69 | O104: 259.2 | P104: 259.49 | Q104: 255.15 | R104: 256.88 | S104: 259.34 | T104: 264.69 | U104: 262.38
B105: А04.28.002.001 | C105: Ультразвуковое исследование почек | D105: 182.61 | E105: 230.09 | F105: 232.28 | G105: 232.28 | H105: 226.8 | I105: 232.65 | J105: 231.91 | K105: 297.65 | L105: 298.93 | M105: 300.21 | N105: 304.05 | O105: 327.42 | P105: 327.78 | Q105: 322.31 | R105: 324.5 | S105: 327.6 | T105: 334.36 | U105: 331.44
B106: А02.26.015 | C106: Бесконтактная тонометрия | D106: 83.31 | E106: 104.97 | F106: 105.97 | G106: 105.97 | H106: 103.47 | I106: 106.14 | J106: 105.8 | K106: 135.8 | L106: 136.38 | M106: 136.96 | N106: 138.71 | O106: 149.37 | P106: 149.54 | Q106: 147.04 | R106: 148.04 | S106: 149.46 | T106: 152.54 | U106: 151.21
B107: В01.047.001 | C107: Прием (осмотр, консультация) врача-терапевта первичный | D107: 306.54 | E107: 386.24 | F107: 389.92 | G107: 389.92 | H107: 380.72 | I107: 390.53 | J107: 389.31 | K107: 499.66 | L107: 501.81 | M107: 503.95 | N107: 510.39 | O107: 549.63 | P107: 550.24 | Q107: 541.04 | R107: 544.72 | S107: 549.93 | T107: 561.27 | U107: 556.37
B108: B01.001.001 | C108: Прием (осмотр, консультация) врача-акушера-гинеколога | D108: 385.02 | E108: 485.13 | F108: 489.75 | G108: 489.75 | H108: 478.19 | I108: 490.52 | J108: 488.98 | K108: 627.58 | L108: 630.28 | M108: 632.97 | N108: 641.06 | O108: 690.34 | P108: 691.11 | Q108: 679.56 | R108: 684.18 | S108: 690.73 | T108: 704.97 | U108: 698.81
B109: B01.053.001 | C109: Прием (осмотр, консультация) врача-уролога | D109: 286.5 | E109: 360.99 | F109: 364.43 | G109: 364.43 | H109: 355.83 | I109: 365 | J109: 363.86 | K109: 467 | L109: 469 | M109: 471.01 | N109: 477.02 | O109: 513.69 | P109: 514.27 | Q109: 505.67 | R109: 509.11 | S109: 513.98 | T109: 524.58 | U109: 520
B110: B01.018.001 | C110: Прием (осмотр, консультация) врача-колопроктолога | D110: 357.86 | E110: 450.9 | F110: 455.2 | G110: 455.2 | H110: 444.46 | I110: 455.91 | J110: 454.48 | K110: 583.31 | L110: 585.82 | M110: 588.32 | N110: 595.84 | O110: 641.64 | P110: 642.36 | Q110: 631.62 | R110: 635.92 | S110: 642 | T110: 655.24 | U110: 649.52
